Workbook

Sheet EXPLANATION
B4: DISCLAIMER
B6: - GTS only provide's this file as service, no rights whatsoever may be derived from these calculations, shipper' bookings and GTS Invoices are leading.
B7: - Tariff used in the calculation are the tariffs for 2024 as established by the Dutch regulator ACM (25 May 2023):
C8: https://www.gasunietransportservices.nl/en/news/tariffs-decision-2024
B9: - Multipliers and seasonal factors used as establish by the Duth regulator ACM in the NC TAR decision (11 December 2018):
C10: https://www.gasunietransportservices.nl/en/news/acm-takes-a-final-decision-on-the-tariff-structure-of-gts
B12: LEGEND
B14: GREEN | E14: Input cells to be filled out by user
B15: BLUE | E15: Fixed input data
B16: YELLOW | E16: Calculated value
B17: ORANGE | E17: Calculated resulting value
B18: BLACK | E18: Information sheets (this explanation sheet and sheets with calculation of the total prices)
B20: EXPLANATION CALCULATION TOOL PROFILED BOOKING
B22: Introduction
B23: This tool converts a non-flat (profiled) booking for one year into an optimum combination of yearly, quarterly and monthly capacity products. The tool determines the cheapest combination in line with (a) and (b) of the 'optimisation paragraphs' described in article 2.1.2. of the Transmission Code Gas TSO (quote):
B27: “If a recognised programme-responsible party or connected parties with exit capacity at domestic entry and exit points contract entry or exit capacity at an entry or exit point on the same day in any given combination of quarterly, monthly, and daily capacity products, the network operator of the national gas transmission grid shall, at the request of the recognised programme-responsible party or connected parties with exit capacity, do the following for each tranche of the same quantity of contracted entry or exit capacity:
B32: a. | C32: If the payable price for the combination of contracted quarterly, monthly, and daily capacity products is greater than the price of a yearly capacity product, then the yearly capacity product shall be contracted for the tranche in question, provided the required capacity is available at the relevant entry or exit point;
B36: b. | C36: If the payable price for the combination of contracted monthly and daily capacity products in one gas quarter is greater than the price of the relevant quarterly capacity product, then the relevant quarterly capacity product shall be contracted, provided the required capacity is available at the relevant entry or exit point; or
B40: c. | C40: If the payable price for the combination of contracted daily capacity products in one month is greater than the payable price for the monthly capacity product, then the relevant monthly capacity product shall be contracted, provided the required capacity is available at the relevant entry or exit point.”
B44: The main steps in the optimisation are
B46: * | C46: the profiled capacity of your choosing is divided into capacity tranches of the same quantity;
B48: * | C48: for each tranche the capacity products are determined:
C50: - in case the capacity is the same for all 12 months, a yearly capacity product applies;
C52: - in case the capacity is the same for all 3 consecutive months in a quarter a quarterly capacity product applies. When the by the shipper chosen starting month is not January, April, July or October, the relevant quarter can only be booked per monthly and/or daily product(s);
C56: - in all other case a monthly capacity products applies;
B58: * | C58: if for a tranche the total payable price for the combination of quarterly and/or monthly capacity products is greater than the price of a yearly product, then the yearly capacity product applies instead of the capacity products as determined above;
B61: * | C61: for each month the yearly, quarterly and monthly capacities of all tranches are totalised resulting in an optimised combination of yearly, quarterly and monthly capacity products;
B64: * | C64: for each month the estimated invoice (based on 2024 tariffs) is calculated;
B66: Leading to the following 2 outputs
B67: * | C67: optimised: profiled booking optimised into yearly, quarterly and monthly capacity products including estimated monthly invoice (based on 2024 tariffs); and (for comparison)
B69: * | C69: non-optimised: profiled booking converted into yearly, quarterly and monthly including estimated monthly invoice (based on 2024 tariffs)
B71: Disclaimer
B72: This calculation tool advises shippers the cheapest combination of capacity products, based on the given input. Shippers obviously remain responsible for (timely) contracting the right (combination of) capacity products themselves. No rights or whatsoever can be derived from this calculation tool.

Sheet Profiled booking
B4: CALCULATION TOOL FOR OPTIMISATION OF PROFILED BOOKINGS INTO YEARLY, QUARTERLY AND MONTHLY FIRM CAPACITY PRODUCTS
B7: Postage stamp point | C7: Entry storage | E7: Please fill in the appropriate values in the GREEN fields and click on button below for output
B8: Starting month | C8: January | E8: =IF(OR($C$8=$B$14,$C$8=$B$15),"Please be aware that with this starting month it is not possible to contract the quarterly capacity product January-March",IF(OR($C$8=$B$17,$C$8=$B$18),"Please be aware that with this starting month it is not possible to contract the quarterly capacity product April-June",IF(OR($C$8=$B$20,$C$8=$B$21),"Please be aware that with this starting month it is not possible to contract the quarterly capacity product July-September",IF(OR($C$8=$B$23,$C$8=$B$24),"Please be aware that with this starting month it is not possible to contract the quarterly capacity product October-December","")))) -> 
B9: February capacity in leap year? | C9: Yes | E9: =IF(OR(C13<0,C14<0,C15<0,C16<0,C17<0,C18<0,C19<0,C20<0,C21<0,C22<0,C23<0,C24<0),"WARNING: calculation is not reliable due to negative value(s) in desired profiled booking, please correct to positive values! In case of no correction, all negative values are automatically converted to zero (0) in the calculation.","") -> 
B11: Month | C11: Desired profiled capacity booking
C12: kWh/h/y
B13: January | C13: 7,000,000
B14: February | C14: 7,000,000
B15: March | C15: 6,000,000
B16: April | C16: 6,000,000
B17: May | C17: 5,000,000
B18: June | C18: 1,000,000
B19: July | C19: 2,000,000
B20: August | C20: 3,000,000
B21: September | C21: 4,000,000
B22: October | C22: 7,000,000
B23: November | C23: 7,000,000
B24: December | C24: 7,000,000

Sheet Total prices
B4: TOTAL PRICES 2024 FIRM CAPACITY (which is sum of the all-in transmission tariffs and the neutrality charges)
B6: Tariffs are all rounded to 8 decimals. Within-day prices are rounded up.
B8: Total prices FIRM capacity for interconnection points | C8: ENTRY NON-STORAGE | I8: ENTRY STORAGE
B9: Payable total prices FIRM capacity for domestic points
C10: Year | D10: Quarter | E10: Month | F10: Day | G10: Within-day | I10: Year | J10: Quarter | K10: Month | L10: Day | M10: Within-day
C11: EUR/kWh/h/Y | D11: EUR/kWh/h/Q | E11: EUR/kWh/h/M | F11: EUR/kWh/h/DA | G11: EUR/kWh/h/WID | I11: EUR/kWh/h/Y | J11: EUR/kWh/h/Q | K11: EUR/kWh/h/M | L11: EUR/kWh/h/DA | M11: EUR/kWh/h/WID
B13: January | C13: ='Transmission tariffs'!C13+'Neutrality charge'!C13 -> 2.23809208 | D13: ='Transmission tariffs'!D13+'Neutrality charge'!D13 -> 1.08023869 | E13: ='Transmission tariffs'!E13+'Neutrality charge'!E13 -> 0.50756076 | F13: ='Transmission tariffs'!F13+'Neutrality charge'!F13 -> 0.02008627 | G13: ='Transmission tariffs'!G13+'Neutrality charge'!G13 -> 0.00083693 | I13: ='Transmission tariffs'!I13+'Neutrality charge'!I13 -> 0.89523684 | J13: ='Transmission tariffs'!J13+'Neutrality charge'!J13 -> 0.43209548 | K13: ='Transmission tariffs'!K13+'Neutrality charge'!K13 -> 0.20302430 | L13: ='Transmission tariffs'!L13+'Neutrality charge'!L13 -> 0.00803451 | M13: ='Transmission tariffs'!M13+'Neutrality charge'!M13 -> 0.00033477
B14: February | E14: ='Transmission tariffs'!E14+'Neutrality charge'!E14 -> 0.44342658 | F14: ='Transmission tariffs'!F14+'Neutrality charge'!F14 -> 0.01875931 | G14: ='Transmission tariffs'!G14+'Neutrality charge'!G14 -> 0.00078164 | K14: ='Transmission tariffs'!K14+'Neutrality charge'!K14 -> 0.17737063 | L14: ='Transmission tariffs'!L14+'Neutrality charge'!L14 -> 0.00750372 | M14: ='Transmission tariffs'!M14+'Neutrality charge'!M14 -> 0.00031266
B15: March | E15: ='Transmission tariffs'!E15+'Neutrality charge'!E15 -> 0.34320775 | F15: ='Transmission tariffs'!F15+'Neutrality charge'!F15 -> 0.01357989 | G15: ='Transmission tariffs'!G15+'Neutrality charge'!G15 -> 0.00056583 | K15: ='Transmission tariffs'!K15+'Neutrality charge'!K15 -> 0.13728310 | L15: ='Transmission tariffs'!L15+'Neutrality charge'!L15 -> 0.00543196 | M15: ='Transmission tariffs'!M15+'Neutrality charge'!M15 -> 0.00022633
B16: April | D16: ='Transmission tariffs'!D16+'Neutrality charge'!D16 -> 0.49525431 | E16: ='Transmission tariffs'!E16+'Neutrality charge'!E16 -> 0.23637555 | F16: ='Transmission tariffs'!F16+'Neutrality charge'!F16 -> 0.00966324 | G16: ='Transmission tariffs'!G16+'Neutrality charge'!G16 -> 0.00040263 | J16: ='Transmission tariffs'!J16+'Neutrality charge'!J16 -> 0.19810172 | K16: ='Transmission tariffs'!K16+'Neutrality charge'!K16 -> 0.09455022 | L16: ='Transmission tariffs'!L16+'Neutrality charge'!L16 -> 0.00386529 | M16: ='Transmission tariffs'!M16+'Neutrality charge'!M16 -> 0.00016106
B17: May | E17: ='Transmission tariffs'!E17+'Neutrality charge'!E17 -> 0.19221909 | F17: ='Transmission tariffs'!F17+'Neutrality charge'!F17 -> 0.00760859 | G17: ='Transmission tariffs'!G17+'Neutrality charge'!G17 -> 0.00031702 | K17: ='Transmission tariffs'!K17+'Neutrality charge'!K17 -> 0.07688763 | L17: ='Transmission tariffs'!L17+'Neutrality charge'!L17 -> 0.00304344 | M17: ='Transmission tariffs'!M17+'Neutrality charge'!M17 -> 0.00012681
B18: June | E18: ='Transmission tariffs'!E18+'Neutrality charge'!E18 -> 0.16510515 | F18: ='Transmission tariffs'!F18+'Neutrality charge'!F18 -> 0.00675250 | G18: ='Transmission tariffs'!G18+'Neutrality charge'!G18 -> 0.00028136 | K18: ='Transmission tariffs'!K18+'Neutrality charge'!K18 -> 0.06604206 | L18: ='Transmission tariffs'!L18+'Neutrality charge'!L18 -> 0.00270100 | M18: ='Transmission tariffs'!M18+'Neutrality charge'!M18 -> 0.00011254
B19: July | D19: ='Transmission tariffs'!D19+'Neutrality charge'!D19 -> 0.38818056 | E19: ='Transmission tariffs'!E19+'Neutrality charge'!E19 -> 0.15781301 | F19: ='Transmission tariffs'!F19+'Neutrality charge'!F19 -> 0.00623883 | G19: ='Transmission tariffs'!G19+'Neutrality charge'!G19 -> 0.00025995 | J19: ='Transmission tariffs'!J19+'Neutrality charge'!J19 -> 0.15527222 | K19: ='Transmission tariffs'!K19+'Neutrality charge'!K19 -> 0.06312520 | L19: ='Transmission tariffs'!L19+'Neutrality charge'!L19 -> 0.00249553 | M19: ='Transmission tariffs'!M19+'Neutrality charge'!M19 -> 0.00010398
B20: August | E20: ='Transmission tariffs'!E20+'Neutrality charge'!E20 -> 0.15013562 | F20: ='Transmission tariffs'!F20+'Neutrality charge'!F20 -> 0.00593920 | G20: ='Transmission tariffs'!G20+'Neutrality charge'!G20 -> 0.00024747 | K20: ='Transmission tariffs'!K20+'Neutrality charge'!K20 -> 0.06005425 | L20: ='Transmission tariffs'!L20+'Neutrality charge'!L20 -> 0.00237568 | M20: ='Transmission tariffs'!M20+'Neutrality charge'!M20 -> 0.00009899
B21: September | E21: ='Transmission tariffs'!E21+'Neutrality charge'!E21 -> 0.15795060 | F21: ='Transmission tariffs'!F21+'Neutrality charge'!F21 -> 0.00646356 | G21: ='Transmission tariffs'!G21+'Neutrality charge'!G21 -> 0.00026931 | K21: ='Transmission tariffs'!K21+'Neutrality charge'!K21 -> 0.06318024 | L21: ='Transmission tariffs'!L21+'Neutrality charge'!L21 -> 0.00258542 | M21: ='Transmission tariffs'!M21+'Neutrality charge'!M21 -> 0.00010773
B22: October | D22: ='Transmission tariffs'!D22+'Neutrality charge'!D22 -> 0.83191595 | E22: ='Transmission tariffs'!E22+'Neutrality charge'!E22 -> 0.21183908 | F22: ='Transmission tariffs'!F22+'Neutrality charge'!F22 -> 0.00838979 | G22: ='Transmission tariffs'!G22+'Neutrality charge'!G22 -> 0.00034957 | J22: ='Transmission tariffs'!J22+'Neutrality charge'!J22 -> 0.33276638 | K22: ='Transmission tariffs'!K22+'Neutrality charge'!K22 -> 0.08473563 | L22: ='Transmission tariffs'!L22+'Neutrality charge'!L22 -> 0.00335591 | M22: ='Transmission tariffs'!M22+'Neutrality charge'!M22 -> 0.00013983
B23: November | E23: ='Transmission tariffs'!E23+'Neutrality charge'!E23 -> 0.33213653 | F23: ='Transmission tariffs'!F23+'Neutrality charge'!F23 -> 0.01357989 | G23: ='Transmission tariffs'!G23+'Neutrality charge'!G23 -> 0.00056583 | K23: ='Transmission tariffs'!K23+'Neutrality charge'!K23 -> 0.13285461 | L23: ='Transmission tariffs'!L23+'Neutrality charge'!L23 -> 0.00543196 | M23: ='Transmission tariffs'!M23+'Neutrality charge'!M23 -> 0.00022633
B24: December | E24: ='Transmission tariffs'!E24+'Neutrality charge'!E24 -> 0.45353469 | F24: ='Transmission tariffs'!F24+'Neutrality charge'!F24 -> 0.01794601 | G24: ='Transmission tariffs'!G24+'Neutrality charge'!G24 -> 0.00074775 | K24: ='Transmission tariffs'!K24+'Neutrality charge'!K24 -> 0.18141387 | L24: ='Transmission tariffs'!L24+'Neutrality charge'!L24 -> 0.00717840 | M24: ='Transmission tariffs'!M24+'Neutrality charge'!M24 -> 0.00029910
B26: Total prices FIRM capacity for interconnection points | C26: EXIT NON-STORAGE | I26: EXIT STORAGE
B27: Payable total prices FIRM capacity for domestic points
C28: Year | D28: Quarter | E28: Month | F28: Day | G28: Within-day | I28: Year | J28: Quarter | K28: Month | L28: Day | M28: Within-day
C29: EUR/kWh/h/Y | D29: EUR/kWh/h/Q | E29: EUR/kWh/h/M | F29: EUR/kWh/h/DA | G29: EUR/kWh/h/WID | I29: EUR/kWh/h/Y | J29: EUR/kWh/h/Q | K29: EUR/kWh/h/M | L29: EUR/kWh/h/DA | M29: EUR/kWh/h/WID
B31: January | C31: ='Transmission tariffs'!C31+'Neutrality charge'!C31 -> 2.18750422 | D31: ='Transmission tariffs'!D31+'Neutrality charge'!D31 -> 1.05582192 | E31: ='Transmission tariffs'!E31+'Neutrality charge'!E31 -> 0.49608830 | F31: ='Transmission tariffs'!F31+'Neutrality charge'!F31 -> 0.01963226 | G31: ='Transmission tariffs'!G31+'Neutrality charge'!G31 -> 0.00081801 | I31: ='Transmission tariffs'!I31+'Neutrality charge'!I31 -> 0.87500169 | J31: ='Transmission tariffs'!J31+'Neutrality charge'!J31 -> 0.42232877 | K31: ='Transmission tariffs'!K31+'Neutrality charge'!K31 -> 0.19843532 | L31: ='Transmission tariffs'!L31+'Neutrality charge'!L31 -> 0.00785290 | M31: ='Transmission tariffs'!M31+'Neutrality charge'!M31 -> 0.00032720
B32: February | E32: ='Transmission tariffs'!E32+'Neutrality charge'!E32 -> 0.43340376 | F32: ='Transmission tariffs'!F32+'Neutrality charge'!F32 -> 0.01833529 | G32: ='Transmission tariffs'!G32+'Neutrality charge'!G32 -> 0.00076397 | K32: ='Transmission tariffs'!K32+'Neutrality charge'!K32 -> 0.17336150 | L32: ='Transmission tariffs'!L32+'Neutrality charge'!L32 -> 0.00733412 | M32: ='Transmission tariffs'!M32+'Neutrality charge'!M32 -> 0.00030559
B33: March | E33: ='Transmission tariffs'!E33+'Neutrality charge'!E33 -> 0.33545019 | F33: ='Transmission tariffs'!F33+'Neutrality charge'!F33 -> 0.01327295 | G33: ='Transmission tariffs'!G33+'Neutrality charge'!G33 -> 0.00055304 | K33: ='Transmission tariffs'!K33+'Neutrality charge'!K33 -> 0.13418008 | L33: ='Transmission tariffs'!L33+'Neutrality charge'!L33 -> 0.00530918 | M33: ='Transmission tariffs'!M33+'Neutrality charge'!M33 -> 0.00022122
B34: April | D34: ='Transmission tariffs'!D34+'Neutrality charge'!D34 -> 0.48406002 | E34: ='Transmission tariffs'!E34+'Neutrality charge'!E34 -> 0.23103272 | F34: ='Transmission tariffs'!F34+'Neutrality charge'!F34 -> 0.00944482 | G34: ='Transmission tariffs'!G34+'Neutrality charge'!G34 -> 0.00039354 | J34: ='Transmission tariffs'!J34+'Neutrality charge'!J34 -> 0.19362401 | K34: ='Transmission tariffs'!K34+'Neutrality charge'!K34 -> 0.09241309 | L34: ='Transmission tariffs'!L34+'Neutrality charge'!L34 -> 0.00377792 | M34: ='Transmission tariffs'!M34+'Neutrality charge'!M34 -> 0.00015741
B35: May | E35: ='Transmission tariffs'!E35+'Neutrality charge'!E35 -> 0.18787433 | F35: ='Transmission tariffs'!F35+'Neutrality charge'!F35 -> 0.00743662 | G35: ='Transmission tariffs'!G35+'Neutrality charge'!G35 -> 0.00030985 | K35: ='Transmission tariffs'!K35+'Neutrality charge'!K35 -> 0.07514974 | L35: ='Transmission tariffs'!L35+'Neutrality charge'!L35 -> 0.00297464 | M35: ='Transmission tariffs'!M35+'Neutrality charge'!M35 -> 0.00012394
B36: June | E36: ='Transmission tariffs'!E36+'Neutrality charge'!E36 -> 0.16137326 | F36: ='Transmission tariffs'!F36+'Neutrality charge'!F36 -> 0.00659987 | G36: ='Transmission tariffs'!G36+'Neutrality charge'!G36 -> 0.00027499 | K36: ='Transmission tariffs'!K36+'Neutrality charge'!K36 -> 0.06454931 | L36: ='Transmission tariffs'!L36+'Neutrality charge'!L36 -> 0.00263995 | M36: ='Transmission tariffs'!M36+'Neutrality charge'!M36 -> 0.00011000
B37: July | D37: ='Transmission tariffs'!D37+'Neutrality charge'!D37 -> 0.37940647 | E37: ='Transmission tariffs'!E37+'Neutrality charge'!E37 -> 0.15424594 | F37: ='Transmission tariffs'!F37+'Neutrality charge'!F37 -> 0.00609782 | G37: ='Transmission tariffs'!G37+'Neutrality charge'!G37 -> 0.00025407 | J37: ='Transmission tariffs'!J37+'Neutrality charge'!J37 -> 0.15176258 | K37: ='Transmission tariffs'!K37+'Neutrality charge'!K37 -> 0.06169838 | L37: ='Transmission tariffs'!L37+'Neutrality charge'!L37 -> 0.00243912 | M37: ='Transmission tariffs'!M37+'Neutrality charge'!M37 -> 0.00010163
B38: August | E38: ='Transmission tariffs'!E38+'Neutrality charge'!E38 -> 0.14674208 | F38: ='Transmission tariffs'!F38+'Neutrality charge'!F38 -> 0.00580496 | G38: ='Transmission tariffs'!G38+'Neutrality charge'!G38 -> 0.00024187 | K38: ='Transmission tariffs'!K38+'Neutrality charge'!K38 -> 0.05869684 | L38: ='Transmission tariffs'!L38+'Neutrality charge'!L38 -> 0.00232198 | M38: ='Transmission tariffs'!M38+'Neutrality charge'!M38 -> 0.00009674
B39: September | E39: ='Transmission tariffs'!E39+'Neutrality charge'!E39 -> 0.15438042 | F39: ='Transmission tariffs'!F39+'Neutrality charge'!F39 -> 0.00631746 | G39: ='Transmission tariffs'!G39+'Neutrality charge'!G39 -> 0.00026323 | K39: ='Transmission tariffs'!K39+'Neutrality charge'!K39 -> 0.06175217 | L39: ='Transmission tariffs'!L39+'Neutrality charge'!L39 -> 0.00252699 | M39: ='Transmission tariffs'!M39+'Neutrality charge'!M39 -> 0.00010529
B40: October | D40: ='Transmission tariffs'!D40+'Neutrality charge'!D40 -> 0.81311205 | E40: ='Transmission tariffs'!E40+'Neutrality charge'!E40 -> 0.20705086 | F40: ='Transmission tariffs'!F40+'Neutrality charge'!F40 -> 0.00820015 | G40: ='Transmission tariffs'!G40+'Neutrality charge'!G40 -> 0.00034167 | J40: ='Transmission tariffs'!J40+'Neutrality charge'!J40 -> 0.32524482 | K40: ='Transmission tariffs'!K40+'Neutrality charge'!K40 -> 0.08282034 | L40: ='Transmission tariffs'!L40+'Neutrality charge'!L40 -> 0.00328007 | M40: ='Transmission tariffs'!M40+'Neutrality charge'!M40 -> 0.00013667
B41: November | E41: ='Transmission tariffs'!E41+'Neutrality charge'!E41 -> 0.32462921 | F41: ='Transmission tariffs'!F41+'Neutrality charge'!F41 -> 0.01327295 | G41: ='Transmission tariffs'!G41+'Neutrality charge'!G41 -> 0.00055304 | K41: ='Transmission tariffs'!K41+'Neutrality charge'!K41 -> 0.12985169 | L41: ='Transmission tariffs'!L41+'Neutrality charge'!L41 -> 0.00530918 | M41: ='Transmission tariffs'!M41+'Neutrality charge'!M41 -> 0.00022122
B42: December | E42: ='Transmission tariffs'!E42+'Neutrality charge'!E42 -> 0.44328338 | F42: ='Transmission tariffs'!F42+'Neutrality charge'!F42 -> 0.01754038 | G42: ='Transmission tariffs'!G42+'Neutrality charge'!G42 -> 0.00073085 | K42: ='Transmission tariffs'!K42+'Neutrality charge'!K42 -> 0.17731336 | L42: ='Transmission tariffs'!L42+'Neutrality charge'!L42 -> 0.00701615 | M42: ='Transmission tariffs'!M42+'Neutrality charge'!M42 -> 0.00029234
B75: Multipliers (M)
B77: Quaterly multiplier
B78: Monthly multiplier
B79: Daily multiplier
B80: Within-day multiplier
B82: Seasonal factors (SF) | C82: WID
B84: SF - Jan | C84: 1.877
B85: SF - Feb | C85: 1.753
B86: SF - March | C86: 1.269
B87: SF - April | C87: 0.903
B88: SF - May | C88: 0.711
B89: SF - June | C89: 0.631
B90: SF - July | C90: 0.583
B91: SF - August | C91: 0.555
B92: SF - Sept | C92: 0.604
B93: SF - Oct | C93: 0.784
B94: SF - Nov | C94: 1.269
B95: SF - Dec | C95: 1.677
B97: SF - Jan - March
B98: SF - April - June
B99: SF - July - Sept
B100: SF - Oct - Dec

Sheet Transmission tariffs
B4: ALL-IN TRANSMISSION TARIFFS 2024 (as established by the Dutch regulator ACM)
B6: Tariffs are all rounded to 8 decimals. Within-day prices are rounded up.
B8: Reserve prices FIRM capacity for interconnection points | C8: ENTRY NON-STORAGE | I8: ENTRY STORAGE
B9: Payable prices FIRM capacity for domestic points
C10: Year | D10: Quarter | E10: Month | F10: Day | G10: Within-day | I10: Year | J10: Quarter | K10: Month | L10: Day | M10: Within-day
C11: EUR/kWh/h/Y | D11: EUR/kWh/h/Q | E11: EUR/kWh/h/M | F11: EUR/kWh/h/DA | G11: EUR/kWh/h/WID | I11: EUR/kWh/h/Y | J11: EUR/kWh/h/Q | K11: EUR/kWh/h/M | L11: EUR/kWh/h/DA | M11: EUR/kWh/h/WID
B13: Januari | C13: 2.25405482 | D13: 1.08794327 | E13: 0.51118083 | F13: 0.02022953 | G13: 0.00084290 | I13: 0.90162193 | J13: 0.43517731 | K13: 0.20447233 | L13: 0.00809181 | M13: 0.00033716
B14: Februari | E14: 0.44658923 | F14: 0.01889311 | G14: 0.00078722 | K14: 0.17863569 | L14: 0.00755724 | M14: 0.00031489
B15: Maart | E15: 0.34565561 | F15: 0.01367675 | G15: 0.00056987 | K15: 0.13826224 | L15: 0.00547070 | M15: 0.00022795
B16: April | D16: 0.49878661 | E16: 0.23806145 | F16: 0.00973216 | G16: 0.00040551 | J16: 0.19951464 | K16: 0.09522458 | L16: 0.00389286 | M16: 0.00016221
B17: Mei | E17: 0.19359005 | F17: 0.00766286 | G17: 0.00031929 | K17: 0.07743602 | L17: 0.00306515 | M17: 0.00012772
B18: Juni | E18: 0.16628273 | F18: 0.00680066 | G18: 0.00028337 | K18: 0.06651309 | L18: 0.00272026 | M18: 0.00011335
B19: Juli | D19: 0.39094918 | E19: 0.15893858 | F19: 0.00628333 | G19: 0.00026181 | J19: 0.15637967 | K19: 0.06357543 | L19: 0.00251333 | M19: 0.00010473
B20: Augustus | E20: 0.15120643 | F20: 0.00598156 | G20: 0.00024924 | K20: 0.06048257 | L20: 0.00239262 | M20: 0.00009970
B21: September | E21: 0.15907715 | F21: 0.00650966 | G21: 0.00027124 | K21: 0.06363086 | L21: 0.00260386 | M21: 0.00010850
B22: Oktober | D22: 0.83784942 | E22: 0.21334998 | F22: 0.00844963 | G22: 0.00035207 | J22: 0.33513977 | K22: 0.08533999 | L22: 0.00337985 | M22: 0.00014083
B23: November | E23: 0.33450543 | F23: 0.01367675 | G23: 0.00056987 | K23: 0.13380217 | L23: 0.00547070 | M23: 0.00022795
B24: December | E24: 0.45676943 | F24: 0.01807401 | G24: 0.00075309 | K24: 0.18270777 | L24: 0.00722960 | M24: 0.00030124
B26: Reserve prices FIRM capacity for interconnection points | C26: EXIT NON-STORAGE | I26: EXIT STORAGE
B27: Payable prices FIRM capacity for domestic points
C28: Year | D28: Quarter | E28: Month | F28: Day | G28: Within-day | I28: Year | J28: Quarter | K28: Month | L28: Day | M28: Within-day
C29: EUR/kWh/h/Y | D29: EUR/kWh/h/Q | E29: EUR/kWh/h/M | F29: EUR/kWh/h/DA | G29: EUR/kWh/h/WID | I29: EUR/kWh/h/Y | J29: EUR/kWh/h/Q | K29: EUR/kWh/h/M | L29: EUR/kWh/h/DA | M29: EUR/kWh/h/WID
B31: Januari | C31: 2.20310615 | D31: 1.06335236 | E31: 0.49962655 | F31: 0.01977228 | G31: 0.00082385 | I31: 0.88124246 | J31: 0.42534094 | K31: 0.19985062 | L31: 0.00790891 | M31: 0.00032954
B32: Februari | E32: 0.43649492 | F32: 0.01846606 | G32: 0.00076942 | K32: 0.17459797 | L32: 0.00738643 | M32: 0.00030777
B33: Maart | E33: 0.33784272 | F33: 0.01336762 | G33: 0.00055699 | K33: 0.13513709 | L33: 0.00534705 | M33: 0.00022280
B34: April | D34: 0.48751248 | E34: 0.23268051 | F34: 0.00951218 | G34: 0.00039635 | J34: 0.19500499 | K34: 0.09307221 | L34: 0.00380487 | M34: 0.00015854
B35: Mei | E35: 0.18921431 | F35: 0.00748966 | G35: 0.00031207 | K35: 0.07568573 | L35: 0.00299586 | M35: 0.00012483
B36: Juni | E36: 0.16252422 | F36: 0.00664694 | G36: 0.00027696 | K36: 0.06500969 | L36: 0.00265878 | M36: 0.00011079
B37: Juli | D37: 0.38211251 | E37: 0.15534607 | F37: 0.00614131 | G37: 0.00025589 | J37: 0.15284500 | K37: 0.06213843 | L37: 0.00245652 | M37: 0.00010236
B38: Augustus | E38: 0.14778869 | F38: 0.00584636 | G38: 0.00024360 | K38: 0.05911548 | L38: 0.00233854 | M38: 0.00009744
B39: September | E39: 0.15548151 | F39: 0.00636252 | G39: 0.00026511 | K39: 0.06219260 | L39: 0.00254501 | M39: 0.00010605
B40: Oktober | D40: 0.81891141 | E40: 0.20852761 | F40: 0.00825864 | G40: 0.00034411 | J40: 0.32756456 | K40: 0.08341104 | L40: 0.00330346 | M40: 0.00013765
B41: November | E41: 0.32694456 | F41: 0.01336762 | G41: 0.00055699 | K41: 0.13077783 | L41: 0.00534705 | M41: 0.00022280
B42: December | E42: 0.44644501 | F42: 0.01766548 | G42: 0.00073607 | K42: 0.17857801 | L42: 0.00706619 | M42: 0.00029443
B75: Multipliers (M)
B77: Quaterly multiplier
B78: Monthly multiplier
B79: Daily multiplier
B80: Within-day multiplier
B82: Seasonal factors (SF) | C82: WID
B84: SF - Jan | C84: 1.877
B85: SF - Feb | C85: 1.753
B86: SF - March | C86: 1.269
B87: SF - April | C87: 0.903
B88: SF - May | C88: 0.711
B89: SF - June | C89: 0.631
B90: SF - July | C90: 0.583
B91: SF - August | C91: 0.555
B92: SF - Sept | C92: 0.604
B93: SF - Oct | C93: 0.784
B94: SF - Nov | C94: 1.269
B95: SF - Dec | C95: 1.677
B97: SF - Jan - March
B98: SF - April - June
B99: SF - July - Sept
B100: SF - Oct - Dec

Sheet Neutrality charge
B4: NEUTRALITY CHARGE 2024 (as established by GTS in accordance with calculation methodology as stated in the Transmission Code Gas - TSO)
B6: Charges are all rounded to 8 decimals. Within-day prices are rounded up.
B8: Charge FIRM capacity for interconnection points | C8: ENTRY NON-STORAGE | I8: ENTRY STORAGE
B9: Payable charge FIRM capacity for domestic points
C10: Year | D10: Quarter | E10: Month | F10: Day | G10: Within-day | I10: Year | J10: Quarter | K10: Month | L10: Day | M10: Within-day
C11: EUR/kWh/h/Y | D11: EUR/kWh/h/Q | E11: EUR/kWh/h/M | F11: EUR/kWh/h/DA | G11: EUR/kWh/h/WID | I11: EUR/kWh/h/Y | J11: EUR/kWh/h/Q | K11: EUR/kWh/h/M | L11: EUR/kWh/h/DA | M11: EUR/kWh/h/WID
B13: Januari | C13: -0.01596274 | D13: -0.00770458 | E13: -0.00362007 | F13: -0.00014326 | G13: -0.00000597 | I13: -0.00638509 | J13: -0.00308183 | K13: -0.00144803 | L13: -0.00005730 | M13: -0.00000239
B14: Februari | E14: -0.00316265 | F14: -0.00013380 | G14: -0.00000558 | K14: -0.00126506 | L14: -0.00005352 | M14: -0.00000223
B15: Maart | E15: -0.00244786 | F15: -0.00009686 | G15: -0.00000404 | K15: -0.00097914 | L15: -0.00003874 | M15: -0.00000162
B16: April | D16: -0.00353230 | E16: -0.00168590 | F16: -0.00006892 | G16: -0.00000288 | J16: -0.00141292 | K16: -0.00067436 | L16: -0.00002757 | M16: -0.00000115
B17: Mei | E17: -0.00137096 | F17: -0.00005427 | G17: -0.00000227 | K17: -0.00054839 | L17: -0.00002171 | M17: -0.00000091
B18: Juni | E18: -0.00117758 | F18: -0.00004816 | G18: -0.00000201 | K18: -0.00047103 | L18: -0.00001926 | M18: -0.00000081
B19: Juli | D19: -0.00276862 | E19: -0.00112557 | F19: -0.00004450 | G19: -0.00000186 | J19: -0.00110745 | K19: -0.00045023 | L19: -0.00001780 | M19: -0.00000075
B20: Augustus | E20: -0.00107081 | F20: -0.00004236 | G20: -0.00000177 | K20: -0.00042832 | L20: -0.00001694 | M20: -0.00000071
B21: September | E21: -0.00112655 | F21: -0.00004610 | G21: -0.00000193 | K21: -0.00045062 | L21: -0.00001844 | M21: -0.00000077
B22: Oktober | D22: -0.00593347 | E22: -0.00151090 | F22: -0.00005984 | G22: -0.00000250 | J22: -0.00237339 | K22: -0.00060436 | L22: -0.00002394 | M22: -0.00000100
B23: November | E23: -0.00236890 | F23: -0.00009686 | G23: -0.00000404 | K23: -0.00094756 | L23: -0.00003874 | M23: -0.00000162
B24: December | E24: -0.00323474 | F24: -0.00012800 | G24: -0.00000534 | K24: -0.00129390 | L24: -0.00005120 | M24: -0.00000214
B26: Charge FIRM capacity for interconnection points | C26: EXIT NON-STORAGE | I26: EXIT STORAGE
B27: Payable charge FIRM capacity for domestic points
C28: Year | D28: Quarter | E28: Month | F28: Day | G28: Within-day | I28: Year | J28: Quarter | K28: Month | L28: Day | M28: Within-day
C29: EUR/kWh/h/Y | D29: EUR/kWh/h/Q | E29: EUR/kWh/h/M | F29: EUR/kWh/h/DA | G29: EUR/kWh/h/WID | I29: EUR/kWh/h/Y | J29: EUR/kWh/h/Q | K29: EUR/kWh/h/M | L29: EUR/kWh/h/DA | M29: EUR/kWh/h/WID
B31: Januari | C31: -0.01560193 | D31: -0.00753044 | E31: -0.00353825 | F31: -0.00014002 | G31: -0.00000584 | I31: -0.00624077 | J31: -0.00301217 | K31: -0.00141530 | L31: -0.00005601 | M31: -0.00000234
B32: Februari | E32: -0.00309116 | F32: -0.00013077 | G32: -0.00000545 | K32: -0.00123647 | L32: -0.00005231 | M32: -0.00000218
B33: Maart | E33: -0.00239253 | F33: -0.00009467 | G33: -0.00000395 | K33: -0.00095701 | L33: -0.00003787 | M33: -0.00000158
B34: April | D34: -0.00345246 | E34: -0.00164779 | F34: -0.00006736 | G34: -0.00000281 | J34: -0.00138098 | K34: -0.00065912 | L34: -0.00002695 | M34: -0.00000113
B35: Mei | E35: -0.00133998 | F35: -0.00005304 | G35: -0.00000222 | K35: -0.00053599 | L35: -0.00002122 | M35: -0.00000089
B36: Juni | E36: -0.00115096 | F36: -0.00004707 | G36: -0.00000197 | K36: -0.00046038 | L36: -0.00001883 | M36: -0.00000079
B37: Juli | D37: -0.00270604 | E37: -0.00110013 | F37: -0.00004349 | G37: -0.00000182 | J37: -0.00108242 | K37: -0.00044005 | L37: -0.00001740 | M37: -0.00000073
B38: Augustus | E38: -0.00104661 | F38: -0.00004140 | G38: -0.00000173 | K38: -0.00041864 | L38: -0.00001656 | M38: -0.00000070
B39: September | E39: -0.00110109 | F39: -0.00004506 | G39: -0.00000188 | K39: -0.00044043 | L39: -0.00001802 | M39: -0.00000076
B40: Oktober | D40: -0.00579936 | E40: -0.00147675 | F40: -0.00005849 | G40: -0.00000244 | J40: -0.00231974 | K40: -0.00059070 | L40: -0.00002339 | M40: -0.00000098
B41: November | E41: -0.00231535 | F41: -0.00009467 | G41: -0.00000395 | K41: -0.00092614 | L41: -0.00003787 | M41: -0.00000158
B42: December | E42: -0.00316163 | F42: -0.00012510 | G42: -0.00000522 | K42: -0.00126465 | L42: -0.00005004 | M42: -0.00000209
B75: Multipliers (M)
B77: Quaterly multiplier
B78: Monthly multiplier
B79: Daily multiplier
B80: Within-day multiplier
B82: Seasonal factors (SF) | C82: WID
B84: SF - Jan | C84: 1.877
B85: SF - Feb | C85: 1.753
B86: SF - March | C86: 1.269
B87: SF - April | C87: 0.903
B88: SF - May | C88: 0.711
B89: SF - June | C89: 0.631
B90: SF - July | C90: 0.583
B91: SF - August | C91: 0.555
B92: SF - Sept | C92: 0.604
B93: SF - Oct | C93: 0.784
B94: SF - Nov | C94: 1.269
B95: SF - Dec | C95: 1.677
B97: SF - Jan - March
B98: SF - April - June
B99: SF - July - Sept
B100: SF - Oct - Dec

Sheet Booking in Y-Q-M products
B4: CONVERTED PROFILED BOOKING INTO YEARLY, QUARTERLY AND MONTHLY CAPACITY PRODUCTS AND optimised CAPACITY PRODUCTS
B6: DESIRED PROFILED CAPACITY BOOKING | F6: YOUR SAVINGS DUE TO OPTIMISATION | J6: =J26-P26 -> € 505,938
B8: Postage stamp point | C8: ='Profiled booking'!C7 -> Entry storage
B9: Starting month | C9: ='Profiled booking'!C8 -> January
B10: February capacity in leap year | C10: ='Profiled booking'!C9 -> Yes | F10: PROFILED BOOKING CONVERTED INTO Y, Q, M CAPACITY PRODUCTS | L10: PROFILE BOOKING optimised INTO Y, Q, M CAPACITY PRODUCTS
B12: Month | C12: Desired profiled capacity booking | F12: Yearly capacity booking | G12: Quarterly capacity booking | H12: Monthly capacity booking | I12: Total capacity booking | J12: Expected monthly invoice | L12: Yearly capacity booking | M12: Quarterly capacity booking | N12: Monthly capacity booking | O12: Total capacity booking | P12: Expected monthly invoice
C13: kWh/h/y | F13: kWh/h | G13: kWh/h | H13: kWh/h | I13: kWh/h | J13: EUR | L13: kWh/h | M13: kWh/h | N13: kWh/h | O13: kWh/h | P13: EUR
B14: January | C14: =IF('Profiled booking'!C13<0,0,'Profiled booking'!C13) -> 7,000,000 | F14: =Optimisation!E11 -> 1,000,000 | G14: =Optimisation!F11 -> 5,000,000 | H14: =Optimisation!G11 -> 1,000,000 | I14: =SUM(F14:H14) -> 7,000,000 | J14: =Optimisation!H62 -> € 1,014,837 | L14: =Optimisation!J11 -> 5,000,000 | M14: =Optimisation!K11 -> 1,000,000 | N14: =Optimisation!L11 -> 1,000,000 | O14: =SUM(L14:N14) -> 7,000,000 | P14: =Optimisation!M62 -> € 729,352
B15: February | C15: =IF('Profiled booking'!C14<0,0,'Profiled booking'!C14) -> 7,000,000 | F15: =Optimisation!E12 -> 1,000,000 | G15: =Optimisation!F12 -> 5,000,000 | H15: =Optimisation!G12 -> 1,000,000 | I15: 7,000,000 | J15: =Optimisation!H63 -> € 936,808 | L15: =Optimisation!J12 -> 5,000,000 | M15: =Optimisation!K12 -> 1,000,000 | N15: =Optimisation!L12 -> 1,000,000 | O15: 7,000,000 | P15: =Optimisation!M63 -> € 669,742
B16: March | C16: =IF('Profiled booking'!C15<0,0,'Profiled booking'!C15) -> 6,000,000 | F16: =Optimisation!E13 -> 1,000,000 | G16: =Optimisation!F13 -> 5,000,000 | H16: =Optimisation!G13 -> 0 | I16: 6,000,000 | J16: =Optimisation!H64 -> € 811,813 | L16: =Optimisation!J13 -> 5,000,000 | M16: =Optimisation!K13 -> 1,000,000 | N16: =Optimisation!L13 -> 0 | O16: 6,000,000 | P16: =Optimisation!M64 -> € 526,328
B17: April | C17: =IF('Profiled booking'!C16<0,0,'Profiled booking'!C16) -> 6,000,000 | F17: =Optimisation!E14 -> 1,000,000 | G17: =Optimisation!F14 -> 0 | H17: =Optimisation!G14 -> 5,000,000 | I17: 6,000,000 | J17: =Optimisation!H65 -> € 546,131 | L17: =Optimisation!J14 -> 5,000,000 | M17: =Optimisation!K14 -> 0 | N17: =Optimisation!L14 -> 1,000,000 | O17: 6,000,000 | P17: =Optimisation!M65 -> € 461,451
B18: May | C18: =IF('Profiled booking'!C17<0,0,'Profiled booking'!C17) -> 5,000,000 | F18: =Optimisation!E15 -> 1,000,000 | G18: =Optimisation!F15 -> 0 | H18: =Optimisation!G15 -> 4,000,000 | I18: 5,000,000 | J18: =Optimisation!H66 -> € 383,377 | L18: =Optimisation!J15 -> 5,000,000 | M18: =Optimisation!K15 -> 0 | N18: =Optimisation!L15 -> 0 | O18: 5,000,000 | P18: =Optimisation!M66 -> € 379,130
B19: June | C19: =IF('Profiled booking'!C18<0,0,'Profiled booking'!C18) -> 1,000,000 | F19: =Optimisation!E16 -> 1,000,000 | G19: =Optimisation!F16 -> 0 | H19: =Optimisation!G16 -> 0 | I19: 1,000,000 | J19: =Optimisation!H67 -> € 73,380 | L19: =Optimisation!J16 -> 5,000,000 | M19: =Optimisation!K16 -> 0 | N19: =Optimisation!L16 -> 0 | O19: 5,000,000 | P19: =Optimisation!M67 -> € 366,900
B20: July | C20: =IF('Profiled booking'!C19<0,0,'Profiled booking'!C19) -> 2,000,000 | F20: =Optimisation!E17 -> 1,000,000 | G20: =Optimisation!F17 -> 1,000,000 | H20: =Optimisation!G17 -> 0 | I20: 2,000,000 | J20: =Optimisation!H68 -> € 128,146 | L20: =Optimisation!J17 -> 5,000,000 | M20: =Optimisation!K17 -> 0 | N20: =Optimisation!L17 -> 0 | O20: 5,000,000 | P20: =Optimisation!M68 -> € 379,130
B21: August | C21: =IF('Profiled booking'!C20<0,0,'Profiled booking'!C20) -> 3,000,000 | F21: =Optimisation!E18 -> 1,000,000 | G21: =Optimisation!F18 -> 1,000,000 | H21: =Optimisation!G18 -> 1,000,000 | I21: 3,000,000 | J21: =Optimisation!H69 -> € 188,200 | L21: =Optimisation!J18 -> 5,000,000 | M21: =Optimisation!K18 -> 0 | N21: =Optimisation!L18 -> 0 | O21: 5,000,000 | P21: =Optimisation!M69 -> € 379,130
B22: September | C22: =IF('Profiled booking'!C21<0,0,'Profiled booking'!C21) -> 4,000,000 | F22: =Optimisation!E19 -> 1,000,000 | G22: =Optimisation!F19 -> 1,000,000 | H22: =Optimisation!G19 -> 2,000,000 | I22: 4,000,000 | J22: =Optimisation!H70 -> € 250,373 | L22: =Optimisation!J19 -> 5,000,000 | M22: =Optimisation!K19 -> 0 | N22: =Optimisation!L19 -> 0 | O22: 5,000,000 | P22: =Optimisation!M70 -> € 366,900
B23: October | C23: =IF('Profiled booking'!C22<0,0,'Profiled booking'!C22) -> 7,000,000 | F23: =Optimisation!E20 -> 1,000,000 | G23: =Optimisation!F20 -> 6,000,000 | H23: =Optimisation!G20 -> 0 | I23: 7,000,000 | J23: =Optimisation!H71 -> € 748,593 | L23: =Optimisation!J20 -> 5,000,000 | M23: =Optimisation!K20 -> 2,000,000 | N23: =Optimisation!L20 -> 0 | O23: 7,000,000 | P23: =Optimisation!M71 -> € 603,386
B24: November | C24: =IF('Profiled booking'!C23<0,0,'Profiled booking'!C23) -> 7,000,000 | F24: =Optimisation!E21 -> 1,000,000 | G24: =Optimisation!F21 -> 6,000,000 | H24: =Optimisation!G21 -> 0 | I24: 7,000,000 | J24: =Optimisation!H72 -> € 724,445 | L24: =Optimisation!J21 -> 5,000,000 | M24: =Optimisation!K21 -> 2,000,000 | N24: =Optimisation!L21 -> 0 | O24: 7,000,000 | P24: =Optimisation!M72 -> € 583,922
B25: December | C25: =IF('Profiled booking'!C24<0,0,'Profiled booking'!C24) -> 7,000,000 | F25: =Optimisation!E22 -> 1,000,000 | G25: =Optimisation!F22 -> 6,000,000 | H25: =Optimisation!G22 -> 0 | I25: 7,000,000 | J25: =Optimisation!H73 -> € 748,593 | L25: =Optimisation!J22 -> 5,000,000 | M25: =Optimisation!K22 -> 2,000,000 | N25: =Optimisation!L22 -> 0 | O25: 7,000,000 | P25: =Optimisation!M73 -> € 603,386
I26: =SUM(I14:I25) -> 62,000,000 | J26: =SUM(J14:J25) -> € 6,554,696 | O26: =SUM(O14:O25) -> 72,000,000 | P26: =SUM(P14:P25) -> € 6,048,758

Sheet Monthly invoice
B4: CONVERTED PROFILED BOOKING INTO NON-optimised AND optimised CAPACITY PRODUCTS
B6: DESIRED PROFILED CAPACITY BOOKING | F6: YOUR SAVINGS DUE TO OPTIMISATION | I6: =I44-N44 -> € 505,938
B8: Postage stamp point | C8: ='Profiled booking'!C7 -> Entry storage
B9: Starting month | C9: ='Profiled booking'!C8 -> January
B10: February capacity in leap year | C10: ='Profiled booking'!C9 -> Yes | F10: PROFILED BOOKING CONVERTED INTO Y, Q, M CAPACITY PRODUCTS | K10: PROFILE BOOKING optimised INTO Y, Q, M CAPACITY PRODUCTS
B12: Month | C12: Desired profiled capacity booking | F12: Yearly capacity booking | G12: Quarterly capacity booking | H12: Monthly capacity booking | I12: Total capacity booking | K12: Yearly capacity booking | L12: Quarterly capacity booking | M12: Monthly capacity booking | N12: Total capacity booking
C13: kWh/h/y | F13: kWh/h | G13: kWh/h | H13: kWh/h | I13: kWh/h | K13: kWh/h | L13: kWh/h | M13: kWh/h | N13: kWh/h
B14: January | C14: =IF('Profiled booking'!C13<0,0,'Profiled booking'!C13) -> 7,000,000 | F14: =Optimisation!E11 -> 1,000,000 | G14: =Optimisation!F11 -> 5,000,000 | H14: =Optimisation!G11 -> 1,000,000 | I14: =SUM(F14:H14) -> 7,000,000 | K14: =Optimisation!J11 -> 5,000,000 | L14: =Optimisation!K11 -> 1,000,000 | M14: =Optimisation!L11 -> 1,000,000 | N14: =SUM(K14:M14) -> 7,000,000
B15: February | C15: =IF('Profiled booking'!C14<0,0,'Profiled booking'!C14) -> 7,000,000 | F15: =Optimisation!E12 -> 1,000,000 | G15: =Optimisation!F12 -> 5,000,000 | H15: =Optimisation!G12 -> 1,000,000 | I15: 7,000,000 | K15: =Optimisation!J12 -> 5,000,000 | L15: =Optimisation!K12 -> 1,000,000 | M15: =Optimisation!L12 -> 1,000,000 | N15: 7,000,000
B16: March | C16: =IF('Profiled booking'!C15<0,0,'Profiled booking'!C15) -> 6,000,000 | F16: =Optimisation!E13 -> 1,000,000 | G16: =Optimisation!F13 -> 5,000,000 | H16: =Optimisation!G13 -> 0 | I16: 6,000,000 | K16: =Optimisation!J13 -> 5,000,000 | L16: =Optimisation!K13 -> 1,000,000 | M16: =Optimisation!L13 -> 0 | N16: 6,000,000
B17: April | C17: =IF('Profiled booking'!C16<0,0,'Profiled booking'!C16) -> 6,000,000 | F17: =Optimisation!E14 -> 1,000,000 | G17: =Optimisation!F14 -> 0 | H17: =Optimisation!G14 -> 5,000,000 | I17: 6,000,000 | K17: =Optimisation!J14 -> 5,000,000 | L17: =Optimisation!K14 -> 0 | M17: =Optimisation!L14 -> 1,000,000 | N17: 6,000,000
B18: May | C18: =IF('Profiled booking'!C17<0,0,'Profiled booking'!C17) -> 5,000,000 | F18: =Optimisation!E15 -> 1,000,000 | G18: =Optimisation!F15 -> 0 | H18: =Optimisation!G15 -> 4,000,000 | I18: 5,000,000 | K18: =Optimisation!J15 -> 5,000,000 | L18: =Optimisation!K15 -> 0 | M18: =Optimisation!L15 -> 0 | N18: 5,000,000
B19: June | C19: =IF('Profiled booking'!C18<0,0,'Profiled booking'!C18) -> 1,000,000 | F19: =Optimisation!E16 -> 1,000,000 | G19: =Optimisation!F16 -> 0 | H19: =Optimisation!G16 -> 0 | I19: 1,000,000 | K19: =Optimisation!J16 -> 5,000,000 | L19: =Optimisation!K16 -> 0 | M19: =Optimisation!L16 -> 0 | N19: 5,000,000
B20: July | C20: =IF('Profiled booking'!C19<0,0,'Profiled booking'!C19) -> 2,000,000 | F20: =Optimisation!E17 -> 1,000,000 | G20: =Optimisation!F17 -> 1,000,000 | H20: =Optimisation!G17 -> 0 | I20: 2,000,000 | K20: =Optimisation!J17 -> 5,000,000 | L20: =Optimisation!K17 -> 0 | M20: =Optimisation!L17 -> 0 | N20: 5,000,000
B21: August | C21: =IF('Profiled booking'!C20<0,0,'Profiled booking'!C20) -> 3,000,000 | F21: =Optimisation!E18 -> 1,000,000 | G21: =Optimisation!F18 -> 1,000,000 | H21: =Optimisation!G18 -> 1,000,000 | I21: 3,000,000 | K21: =Optimisation!J18 -> 5,000,000 | L21: =Optimisation!K18 -> 0 | M21: =Optimisation!L18 -> 0 | N21: 5,000,000
B22: September | C22: =IF('Profiled booking'!C21<0,0,'Profiled booking'!C21) -> 4,000,000 | F22: =Optimisation!E19 -> 1,000,000 | G22: =Optimisation!F19 -> 1,000,000 | H22: =Optimisation!G19 -> 2,000,000 | I22: 4,000,000 | K22: =Optimisation!J19 -> 5,000,000 | L22: =Optimisation!K19 -> 0 | M22: =Optimisation!L19 -> 0 | N22: 5,000,000
B23: October | C23: =IF('Profiled booking'!C22<0,0,'Profiled booking'!C22) -> 7,000,000 | F23: =Optimisation!E20 -> 1,000,000 | G23: =Optimisation!F20 -> 6,000,000 | H23: =Optimisation!G20 -> 0 | I23: 7,000,000 | K23: =Optimisation!J20 -> 5,000,000 | L23: =Optimisation!K20 -> 2,000,000 | M23: =Optimisation!L20 -> 0 | N23: 7,000,000
B24: November | C24: =IF('Profiled booking'!C23<0,0,'Profiled booking'!C23) -> 7,000,000 | F24: =Optimisation!E21 -> 1,000,000 | G24: =Optimisation!F21 -> 6,000,000 | H24: =Optimisation!G21 -> 0 | I24: 7,000,000 | K24: =Optimisation!J21 -> 5,000,000 | L24: =Optimisation!K21 -> 2,000,000 | M24: =Optimisation!L21 -> 0 | N24: 7,000,000
B25: December | C25: =IF('Profiled booking'!C24<0,0,'Profiled booking'!C24) -> 7,000,000 | F25: =Optimisation!E22 -> 1,000,000 | G25: =Optimisation!F22 -> 6,000,000 | H25: =Optimisation!G22 -> 0 | I25: 7,000,000 | K25: =Optimisation!J22 -> 5,000,000 | L25: =Optimisation!K22 -> 2,000,000 | M25: =Optimisation!L22 -> 0 | N25: 7,000,000
I26: =SUM(I14:I25) -> 62,000,000 | N26: =SUM(N14:N25) -> 72,000,000
B28: RESERVE PRICES | F28: EXPECTED INVOICE CONVERTED PROFILE | K28: EXPECTED INVOICE optimised PROFILE
F30: Yearly capacity booking | G30: Quarterly capacity booking | H30: Monthly capacity booking | I30: Expected monthly invoice non-optimised | K30: Yearly capacity booking | L30: Quarterly capacity booking | M30: Monthly capacity booking | N30: Expected monthly invoice optimised
F31: EUR | G31: EUR | H31: EUR | I31: EUR | K31: EUR | L31: EUR | M31: EUR | N31: EUR
B32: =Optimisation!B79 -> € 0.89523684 | C32: =Optimisation!C79 -> € 0.43209548 | D32: =Optimisation!D79 -> € 0.20302430 | F32: =F14*B32 -> € 895,237 | G32: =G14*C32 -> € 2,160,477 | H32: =H14*D32 -> € 203,024 | I32: =Optimisation!H62 -> 1,014,837 | K32: =K14*B32 -> € 4,476,184 | L32: =L14*C32 -> € 432,095 | M32: =M14*D32 -> € 203,024 | N32: =Optimisation!M62 -> 729,352
D33: =Optimisation!D80 -> € 0.17737063 | H33: =H15*D33 -> € 177,371 | I33: =Optimisation!H63 -> 936,808 | M33: =M15*D33 -> € 177,371 | N33: =Optimisation!M63 -> 669,742
D34: =Optimisation!D81 -> € 0.13728310 | H34: 0 | I34: =Optimisation!H64 -> 811,813 | M34: 0 | N34: =Optimisation!M64 -> 526,328
C35: =Optimisation!C82 -> € 0.19810172 | D35: =Optimisation!D82 -> € 0.09455022 | G35: =G17*C35 -> 0 | H35: € 472,751 | I35: =Optimisation!H65 -> 546,131 | L35: =L17*C35 -> 0 | M35: € 94,550 | N35: =Optimisation!M65 -> 461,451
D36: =Optimisation!D83 -> € 0.07688763 | H36: € 307,551 | I36: =Optimisation!H66 -> 383,377 | M36: 0 | N36: =Optimisation!M66 -> 379,130
D37: =Optimisation!D84 -> € 0.06604206 | H37: 0 | I37: =Optimisation!H67 -> 73,380 | M37: 0 | N37: =Optimisation!M67 -> 366,900
C38: =Optimisation!C85 -> € 0.15527222 | D38: =Optimisation!D85 -> € 0.06312520 | G38: =G20*C38 -> € 155,272 | H38: 0 | I38: =Optimisation!H68 -> 128,146 | L38: =L20*C38 -> 0 | M38: 0 | N38: =Optimisation!M68 -> 379,130
D39: =Optimisation!D86 -> € 0.06005425 | H39: € 60,054 | I39: =Optimisation!H69 -> 188,200 | M39: 0 | N39: =Optimisation!M69 -> 379,130
D40: =Optimisation!D87 -> € 0.06318024 | H40: € 126,360 | I40: =Optimisation!H70 -> 250,373 | M40: 0 | N40: =Optimisation!M70 -> 366,900
C41: =Optimisation!C88 -> € 0.33276638 | D41: =Optimisation!D88 -> € 0.08473563 | G41: =G23*C41 -> € 1,996,598 | H41: 0 | I41: =Optimisation!H71 -> 748,593 | L41: =L23*C41 -> € 665,533 | M41: 0 | N41: =Optimisation!M71 -> 603,386
D42: =Optimisation!D89 -> € 0.13285461 | H42: 0 | I42: =Optimisation!H72 -> 724,445 | M42: 0 | N42: =Optimisation!M72 -> 583,922
D43: =Optimisation!D90 -> € 0.18141387 | H43: 0 | I43: =Optimisation!H73 -> 748,593 | M43: 0 | N43: =Optimisation!M73 -> 603,386
F44: =SUM(F32:F43) -> € 895,237 | G44: =SUM(G32:G43) -> € 4,312,348 | H44: =SUM(H32:H43) -> € 1,347,111 | I44: =SUM(I32:I43) -> 6,554,696 | K44: =SUM(K32:K43) -> € 4,476,184 | L44: =SUM(L32:L43) -> € 1,097,628 | M44: =SUM(M32:M43) -> € 474,945 | N44: =SUM(N32:N43) -> 6,048,758

Sheet bladen rechts alleen voor inter (hidden)
B4: De tabbladen rechts zijn alleen voor intern gebruik beschikbaar. Voor extern gebruik zullen deze worden verborgen.

Sheet Multipliers and SF (hidden)
B4: MULTIPLIERS AND SEASONAL FACTORS
B6: Multipliers (M)
B8: Quarterly multiplier | C8: M-Q | D8: 1.25
B9: Monthly multiplier | C9: M-M | D9: 1.5
B10: Daily multiplier | C10: M-DA | D10: 1.75
B11: Within-day multiplier | C11: M-WID | D11: 1.75
B13: Seasonal factors (SF) | D13: Month | E13: Day | F13: WID
B15: SF - Jan | D15: 1.785 | E15: 1.877 | F15: 1.877
B16: SF - Feb | D16: 1.667 | E16: 1.753 | F16: 1.753
B17: SF - March | D17: 1.207 | E17: 1.269 | F17: 1.269
B18: SF - April | D18: 0.859 | E18: 0.903 | F18: 0.903
B19: SF - May | D19: 0.676 | E19: 0.711 | F19: 0.711
B20: SF - June | D20: 0.600 | E20: 0.631 | F20: 0.631
B21: SF - July | D21: 0.555 | E21: 0.583 | F21: 0.583
B22: SF - August | D22: 0.528 | E22: 0.555 | F22: 0.555
B23: SF - Sept | D23: 0.574 | E23: 0.604 | F23: 0.604
B24: SF - Oct | D24: 0.745 | E24: 0.784 | F24: 0.784
B25: SF - Nov | D25: 1.207 | E25: 1.269 | F25: 1.269
B26: SF - Dec | D26: 1.595 | E26: 1.677 | F26: 1.677
B28: SF - Jan - March | D28: 1.553
B29: SF - April - June | D29: 0.712
B30: SF - July - Sept | D30: 0.552
B31: SF - Oct - Dec | D31: 1.183

Sheet Validation (hidden)
B4: VALIDATION POSTAGE STAMP POINTS
C6: Entry non-storage
C7: Entry storage
C8: Exit non-storage
C9: Exit storage
B11: VALIDATION FEBRUARY IN LEAP YEAR
C13: Yes
C14: No

Sheet Optimisation (hidden)
B5: PROFILED BOOKING CAPACITY PRODUCTS: NON-OPTIMIZED vs OPTIMIZED
E7: PROFILE BOOKING WITHOUT optimisation | J7: PROFILE BOOKING WITH optimisation
C9: Profiled capacity booking | E9: Yearly capacity booking | F9: Quarterly capacity booking | G9: Monthly capacity booking | H9: Total capacity booking | J9: Yearly capacity booking | K9: Quarterly capacity booking | L9: Monthly capacity booking | M9: Total capacity booking
C10: kWh/h | E10: kWh/h | F10: kWh/h | G10: kWh/h | H10: kWh/h | J10: kWh/h | K10: kWh/h | L10: kWh/h | M10: kWh/h
B11: January | C11: =IF('Profiled booking'!C13<0,0,'Profiled booking'!C13) -> 7,000,000 | E11: =F130 -> 1,000,000 | F11: =G130 -> 5,000,000 | G11: 1,000,000 | H11: =SUM(E11:G11) -> 7,000,000 | J11: =F216 -> 5,000,000 | K11: =G216 -> 1,000,000 | L11: =H216 -> 1,000,000 | M11: =SUM(J11:L11) -> 7,000,000
B12: February | C12: =IF('Profiled booking'!C14<0,0,'Profiled booking'!C14) -> 7,000,000 | E12: =F131 -> 1,000,000 | F12: 5,000,000 | G12: 1,000,000 | H12: 7,000,000 | J12: 5,000,000 | K12: 1,000,000 | L12: 1,000,000 | M12: 7,000,000
B13: March | C13: =IF('Profiled booking'!C15<0,0,'Profiled booking'!C15) -> 6,000,000 | E13: 1,000,000 | F13: 5,000,000 | G13: 0 | H13: 6,000,000 | J13: 5,000,000 | K13: 1,000,000 | L13: 0 | M13: 6,000,000
B14: April | C14: =IF('Profiled booking'!C16<0,0,'Profiled booking'!C16) -> 6,000,000 | E14: 1,000,000 | F14: 0 | G14: 5,000,000 | H14: 6,000,000 | J14: 5,000,000 | K14: 0 | L14: 1,000,000 | M14: 6,000,000
B15: May | C15: =IF('Profiled booking'!C17<0,0,'Profiled booking'!C17) -> 5,000,000 | E15: 1,000,000 | F15: 0 | G15: 4,000,000 | H15: 5,000,000 | J15: 5,000,000 | K15: 0 | L15: 0 | M15: 5,000,000
B16: June | C16: =IF('Profiled booking'!C18<0,0,'Profiled booking'!C18) -> 1,000,000 | E16: 1,000,000 | F16: 0 | G16: 0 | H16: 1,000,000 | J16: 5,000,000 | K16: 0 | L16: 0 | M16: 5,000,000
B17: July | C17: =IF('Profiled booking'!C19<0,0,'Profiled booking'!C19) -> 2,000,000 | E17: 1,000,000 | F17: 1,000,000 | G17: 0 | H17: 2,000,000 | J17: 5,000,000 | K17: 0 | L17: 0 | M17: 5,000,000
B18: August | C18: =IF('Profiled booking'!C20<0,0,'Profiled booking'!C20) -> 3,000,000 | E18: 1,000,000 | F18: 1,000,000 | G18: 1,000,000 | H18: 3,000,000 | J18: 5,000,000 | K18: 0 | L18: 0 | M18: 5,000,000
B19: September | C19: =IF('Profiled booking'!C21<0,0,'Profiled booking'!C21) -> 4,000,000 | E19: 1,000,000 | F19: 1,000,000 | G19: 2,000,000 | H19: 4,000,000 | J19: 5,000,000 | K19: 0 | L19: 0 | M19: 5,000,000
B20: October | C20: =IF('Profiled booking'!C22<0,0,'Profiled booking'!C22) -> 7,000,000 | E20: 1,000,000 | F20: 6,000,000 | G20: 0 | H20: 7,000,000 | J20: 5,000,000 | K20: 2,000,000 | L20: 0 | M20: 7,000,000
B21: November | C21: =IF('Profiled booking'!C23<0,0,'Profiled booking'!C23) -> 7,000,000 | E21: 1,000,000 | F21: 6,000,000 | G21: 0 | H21: 7,000,000 | J21: 5,000,000 | K21: 2,000,000 | L21: 0 | M21: 7,000,000
B22: December | C22: =IF('Profiled booking'!C24<0,0,'Profiled booking'!C24) -> 7,000,000 | E22: 1,000,000 | F22: 6,000,000 | G22: 0 | H22: 7,000,000 | J22: 5,000,000 | K22: 2,000,000 | L22: 0 | M22: 7,000,000
B23: Total | C23: =SUM(C11:C22) -> 62,000,000 | H23: =SUM(H11:H22) -> 62,000,000 | M23: =SUM(M11:M22) -> 72,000,000
B42: PROFILED BOOKING INVOICE: NON-OPTIMIZED vs OPTIMIZED CAPACITY PRODUCTS
E44: PROFILE BOOKING WITHOUT optimisation | J44: PROFILE BOOKING WITH optimisation
E46: Yearly capacity booking | F46: Quarterly capacity booking | G46: Monthly capacity booking | H46: Total capacity booking | J46: Yearly capacity booking | K46: Quarterly capacity booking | L46: Monthly capacity booking | M46: Total capacity booking
E47: kWh/h | F47: kWh/h | G47: kWh/h | J47: kWh/h | K47: kWh/h | L47: kWh/h
B48: January | E48: =E11 -> 1,000,000 | F48: =F11 -> 5,000,000 | G48: =G11 -> 1,000,000 | J48: =J11 -> 5,000,000 | K48: =K11 -> 1,000,000 | L48: =L11 -> 1,000,000
B49: February | G49: =G12 -> 1,000,000 | L49: =L12 -> 1,000,000
B50: March | G50: 0 | L50: 0
B51: April | F51: =F14 -> 0 | G51: 5,000,000 | K51: =K14 -> 0 | L51: 1,000,000
B52: May | G52: 4,000,000 | L52: 0
B53: June | G53: 0 | L53: 0
B54: July | F54: =F17 -> 1,000,000 | G54: 0 | K54: =K17 -> 0 | L54: 0
B55: August | G55: 1,000,000 | L55: 0
B56: September | G56: 2,000,000 | L56: 0
B57: October | F57: =F20 -> 6,000,000 | G57: 0 | K57: =K20 -> 2,000,000 | L57: 0
B58: November | G58: 0 | L58: 0
B59: December | G59: 0 | L59: 0
B62: January | E62: =E48*$B$79 -> € 895,237 | F62: =F48*$C$79 -> € 2,160,477 | G62: =G48*$D79 -> € 203,024 | H62: =G62+$F$62*H79/$L$79+$E$62*H79/$L$90 -> € 1,014,837 | J62: =J48*$B$79 -> € 4,476,184 | K62: =K48*$C$79 -> € 432,095 | L62: =L48*$D79 -> € 203,024 | M62: =L62+$K$62*H79/$L$79+$J$62*H79/$L$90 -> € 729,352
B63: February | G63: € 177,371 | H63: =G63+$F$62*H80/$L$79+$E$62*H80/$L$90 -> € 936,808 | L63: € 177,371 | M63: =L63+$K$62*H80/$L$79+$J$62*H80/$L$90 -> € 669,742
B64: March | G64: 0 | H64: =G64+$F$62*H81/$L$79+$E$62*H81/$L$90 -> € 811,813 | L64: 0 | M64: =L64+$K$62*H81/$L$79+$J$62*H81/$L$90 -> € 526,328
B65: April | F65: =F51*$C$82 -> 0 | G65: € 472,751 | H65: =G65+$F$65*H82/$L$80+$E$62*H82/$L$90 -> € 546,131 | K65: =K51*$C$82 -> 0 | L65: € 94,550 | M65: =L65+$K$65*H82/$L$80+$J$62*H82/$L$90 -> € 461,451
B66: May | G66: € 307,551 | H66: =G66+$F$65*H83/$L$80+$E$62*H83/$L$90 -> € 383,377 | L66: 0 | M66: =L66+$K$65*H83/$L$80+$J$62*H83/$L$90 -> € 379,130
B67: June | G67: 0 | H67: =G67+$F$65*H84/$L$80+$E$62*H84/$L$90 -> € 73,380 | L67: 0 | M67: =L67+$K$65*H84/$L$80+$J$62*H84/$L$90 -> € 366,900
B68: July | F68: =F54*$C$85 -> € 155,272 | G68: 0 | H68: =G68+$F$68*H85/$L$81+$E$62*H85/$L$90 -> € 128,146 | K68: =K54*$C$85 -> 0 | L68: 0 | M68: =L68+$K$68*H85/$L$81+$J$62*H85/$L$90 -> € 379,130
B69: August | G69: € 60,054 | H69: =G69+$F$68*H86/$L$81+$E$62*H86/$L$90 -> € 188,200 | L69: 0 | M69: =L69+$K$68*H86/$L$81+$J$62*H86/$L$90 -> € 379,130
B70: September | G70: € 126,360 | H70: =G70+$F$68*H87/$L$81+$E$62*H87/$L$90 -> € 250,373 | L70: 0 | M70: =L70+$K$68*H87/$L$81+$J$62*H87/$L$90 -> € 366,900
B71: October | F71: =F57*$C$88 -> € 1,996,598 | G71: 0 | H71: =G71+$F$71*H88/$L$82+$E$62*H88/$L$90 -> € 748,593 | K71: =K57*$C$88 -> € 665,533 | L71: 0 | M71: =L71+$K$71*H88/$L$82+$J$62*H88/$L$90 -> € 603,386 | O71: Saving due to optimisation
B72: November | G72: 0 | H72: =G72+$F$71*H89/$L$82+$E$62*H89/$L$90 -> € 724,445 | L72: 0 | M72: =L72+$K$71*H89/$L$82+$J$62*H89/$L$90 -> € 583,922
B73: December | G73: 0 | H73: =G73+$F$71*H90/$L$82+$E$62*H90/$L$90 -> € 748,593 | L73: 0 | M73: =L73+$K$71*H90/$L$82+$J$62*H90/$L$90 -> € 603,386
B74: Total | E74: =SUM(E62:E73) -> € 895,237 | F74: =SUM(F62:F73) -> € 4,312,348 | G74: =SUM(G62:G73) -> € 1,347,111 | H74: =E74+F74+G74 -> € 6,554,696 | J74: =SUM(J62:J73) -> € 4,476,184 | K74: =SUM(K62:K73) -> € 1,097,628 | L74: =SUM(L62:L73) -> € 474,945 | M74: =J74+K74+L74 -> € 6,048,758 | O74: =H74-M74 -> € 505,938
B76: CALCULATION CALCULATION FACTORS & STARTING MONTH & DAYS IN MONTH, QUARTER AND YEAR (LEAP YEAR OR NOT)
B78: Reserve prices | F78: Seasonal factors | G78: SF - month | H78: Numbers of days | J78: Seasonal factors | K78: SF - quarter | N78: Calculation factors | O78: Monthly | P78: Quarterly | Q78: Quarterly per month
B79: =IF('Profiled booking'!$C$7='Total prices'!$C$8,'Total prices'!C13,IF('Profiled booking'!$C$7='Total prices'!$I$8,'Total prices'!I13,IF('Profiled booking'!$C$7='Total prices'!$C$26,'Total prices'!C31,IF('Profiled booking'!$C$7='Total prices'!$I$26,'Total prices'!I31,0)))) -> € 0.89523684 | C79: =IF('Profiled booking'!$C$7='Total prices'!$C$8,'Total prices'!D13,IF('Profiled booking'!$C$7='Total prices'!$I$8,'Total prices'!J13,IF('Profiled booking'!$C$7='Total prices'!$C$26,'Total prices'!D31,IF('Profiled booking'!$C$7='Total prices'!$I$26,'Total prices'!J31,0)))) -> € 0.43209548 | D79: =IF('Profiled booking'!$C$7='Total prices'!$C$8,'Total prices'!E13,IF('Profiled booking'!$C$7='Total prices'!$I$8,'Total prices'!K13,IF('Profiled booking'!$C$7='Total prices'!$C$26,'Total prices'!E31,IF('Profiled booking'!$C$7='Total prices'!$I$26,'Total prices'!K31,0)))) -> € 0.20302430 | F79: January | G79: ='Multipliers and SF'!D15 -> 1.785 | H79: 31 | J79: SF - Jan - March | K79: ='Multipliers and SF'!D28 -> 1.553 | L79: =SUM(H79:H81) -> 91 | N79: January | O79: =G79*$K$86*$H79/$L$90 -> 0.2268 | P79: =$K$79*$K$85*L79/$L$90 -> 0.4827 | Q79: =P79/3 -> 0.1609
D80: =IF('Profiled booking'!$C$7='Total prices'!$C$8,'Total prices'!E14,IF('Profiled booking'!$C$7='Total prices'!$I$8,'Total prices'!K14,IF('Profiled booking'!$C$7='Total prices'!$C$26,'Total prices'!E32,IF('Profiled booking'!$C$7='Total prices'!$I$26,'Total prices'!K32,0)))) -> € 0.17737063 | F80: February | G80: ='Multipliers and SF'!D16 -> 1.667 | H80: =IF('Profiled booking'!$C$9="Yes",29,28) -> 29 | J80: SF - April - June | K80: ='Multipliers and SF'!D29 -> 0.712 | L80: =SUM(H82:H84) -> 91 | N80: February | O80: =G80*$K$86*$H80/$L$90 -> 0.1981 | P80: =$K$79*$K$85*L79/$L$90 -> 0.4827 | Q80: 0.1609
D81: =IF('Profiled booking'!$C$7='Total prices'!$C$8,'Total prices'!E15,IF('Profiled booking'!$C$7='Total prices'!$I$8,'Total prices'!K15,IF('Profiled booking'!$C$7='Total prices'!$C$26,'Total prices'!E33,IF('Profiled booking'!$C$7='Total prices'!$I$26,'Total prices'!K33,0)))) -> € 0.13728310 | F81: March | G81: ='Multipliers and SF'!D17 -> 1.207 | H81: 31 | J81: SF - July - Sept | K81: ='Multipliers and SF'!D30 -> 0.552 | L81: =SUM(H85:H87) -> 92 | N81: March | O81: 0.1533 | P81: =$K$79*$K$85*L79/$L$90 -> 0.4827 | Q81: 0.1609
C82: =IF('Profiled booking'!$C$7='Total prices'!$C$8,'Total prices'!D16,IF('Profiled booking'!$C$7='Total prices'!$I$8,'Total prices'!J16,IF('Profiled booking'!$C$7='Total prices'!$C$26,'Total prices'!D34,IF('Profiled booking'!$C$7='Total prices'!$I$26,'Total prices'!J34,0)))) -> € 0.19810172 | D82: =IF('Profiled booking'!$C$7='Total prices'!$C$8,'Total prices'!E16,IF('Profiled booking'!$C$7='Total prices'!$I$8,'Total prices'!K16,IF('Profiled booking'!$C$7='Total prices'!$C$26,'Total prices'!E34,IF('Profiled booking'!$C$7='Total prices'!$I$26,'Total prices'!K34,0)))) -> € 0.09455022 | F82: April | G82: ='Multipliers and SF'!D18 -> 0.859 | H82: 30 | J82: SF - Oct - Dec | K82: ='Multipliers and SF'!D31 -> 1.183 | L82: =SUM(H88:H90) -> 92 | N82: April | O82: 0.1056 | P82: =$K$80*$K$85*L80/$L$90 -> 0.2213 | Q82: 0.0738
D83: =IF('Profiled booking'!$C$7='Total prices'!$C$8,'Total prices'!E17,IF('Profiled booking'!$C$7='Total prices'!$I$8,'Total prices'!K17,IF('Profiled booking'!$C$7='Total prices'!$C$26,'Total prices'!E35,IF('Profiled booking'!$C$7='Total prices'!$I$26,'Total prices'!K35,0)))) -> € 0.07688763 | F83: May | G83: ='Multipliers and SF'!D19 -> 0.676 | H83: 31 | N83: May | O83: 0.0859 | P83: =$K$80*$K$85*L80/$L$90 -> 0.2213 | Q83: 0.0738
D84: =IF('Profiled booking'!$C$7='Total prices'!$C$8,'Total prices'!E18,IF('Profiled booking'!$C$7='Total prices'!$I$8,'Total prices'!K18,IF('Profiled booking'!$C$7='Total prices'!$C$26,'Total prices'!E36,IF('Profiled booking'!$C$7='Total prices'!$I$26,'Total prices'!K36,0)))) -> € 0.06604206 | F84: June | G84: ='Multipliers and SF'!D20 -> 0.600 | H84: 30 | J84: Multiplier | N84: June | O84: 0.0738 | P84: =$K$80*$K$85*L80/$L$90 -> 0.2213 | Q84: 0.0738
C85: =IF('Profiled booking'!$C$7='Total prices'!$C$8,'Total prices'!D19,IF('Profiled booking'!$C$7='Total prices'!$I$8,'Total prices'!J19,IF('Profiled booking'!$C$7='Total prices'!$C$26,'Total prices'!D37,IF('Profiled booking'!$C$7='Total prices'!$I$26,'Total prices'!J37,0)))) -> € 0.15527222 | D85: =IF('Profiled booking'!$C$7='Total prices'!$C$8,'Total prices'!E19,IF('Profiled booking'!$C$7='Total prices'!$I$8,'Total prices'!K19,IF('Profiled booking'!$C$7='Total prices'!$C$26,'Total prices'!E37,IF('Profiled booking'!$C$7='Total prices'!$I$26,'Total prices'!K37,0)))) -> € 0.06312520 | F85: July | G85: ='Multipliers and SF'!D21 -> 0.555 | H85: 31 | J85: Quarter | K85: ='Multipliers and SF'!D8 -> 1.25 | N85: July | O85: 0.0705 | P85: =$K$81*$K$85*L81/$L$90 -> 0.1734 | Q85: 0.0578
D86: =IF('Profiled booking'!$C$7='Total prices'!$C$8,'Total prices'!E20,IF('Profiled booking'!$C$7='Total prices'!$I$8,'Total prices'!K20,IF('Profiled booking'!$C$7='Total prices'!$C$26,'Total prices'!E38,IF('Profiled booking'!$C$7='Total prices'!$I$26,'Total prices'!K38,0)))) -> € 0.06005425 | F86: August | G86: ='Multipliers and SF'!D22 -> 0.528 | H86: 31 | J86: Month | K86: ='Multipliers and SF'!D9 -> 1.5 | N86: August | O86: 0.0671 | P86: =$K$81*$K$85*L81/$L$90 -> 0.1734 | Q86: 0.0578
D87: =IF('Profiled booking'!$C$7='Total prices'!$C$8,'Total prices'!E21,IF('Profiled booking'!$C$7='Total prices'!$I$8,'Total prices'!K21,IF('Profiled booking'!$C$7='Total prices'!$C$26,'Total prices'!E39,IF('Profiled booking'!$C$7='Total prices'!$I$26,'Total prices'!K39,0)))) -> € 0.06318024 | F87: September | G87: ='Multipliers and SF'!D23 -> 0.574 | H87: 30 | N87: September | O87: 0.0706 | P87: =$K$81*$K$85*L81/$L$90 -> 0.1734 | Q87: 0.0578
C88: =IF('Profiled booking'!$C$7='Total prices'!$C$8,'Total prices'!D22,IF('Profiled booking'!$C$7='Total prices'!$I$8,'Total prices'!J22,IF('Profiled booking'!$C$7='Total prices'!$C$26,'Total prices'!D40,IF('Profiled booking'!$C$7='Total prices'!$I$26,'Total prices'!J40,0)))) -> € 0.33276638 | D88: =IF('Profiled booking'!$C$7='Total prices'!$C$8,'Total prices'!E22,IF('Profiled booking'!$C$7='Total prices'!$I$8,'Total prices'!K22,IF('Profiled booking'!$C$7='Total prices'!$C$26,'Total prices'!E40,IF('Profiled booking'!$C$7='Total prices'!$I$26,'Total prices'!K40,0)))) -> € 0.08473563 | F88: October | G88: ='Multipliers and SF'!D24 -> 0.745 | H88: 31 | N88: October | O88: 0.0947 | P88: =$K$82*$K$85*L82/$L$90 -> 0.3717 | Q88: 0.1239
D89: =IF('Profiled booking'!$C$7='Total prices'!$C$8,'Total prices'!E23,IF('Profiled booking'!$C$7='Total prices'!$I$8,'Total prices'!K23,IF('Profiled booking'!$C$7='Total prices'!$C$26,'Total prices'!E41,IF('Profiled booking'!$C$7='Total prices'!$I$26,'Total prices'!K41,0)))) -> € 0.13285461 | F89: November | G89: ='Multipliers and SF'!D25 -> 1.207 | H89: 30 | J89: Starting month | L89: ='Profiled booking'!C8 -> January | N89: November | O89: 0.1484 | P89: =$K$82*$K$85*L82/$L$90 -> 0.3717 | Q89: 0.1239
D90: =IF('Profiled booking'!$C$7='Total prices'!$C$8,'Total prices'!E24,IF('Profiled booking'!$C$7='Total prices'!$I$8,'Total prices'!K24,IF('Profiled booking'!$C$7='Total prices'!$C$26,'Total prices'!E42,IF('Profiled booking'!$C$7='Total prices'!$I$26,'Total prices'!K42,0)))) -> € 0.18141387 | F90: December | G90: ='Multipliers and SF'!D26 -> 1.595 | H90: 31 | J90: Days in year | L90: =SUM(H79:H90) -> 366 | N90: December | O90: 0.2026 | P90: =$K$82*$K$85*L82/$L$90 -> 0.3717 | Q90: 0.1239
B92: DIVIDING INTO TRANCHES OF THE SAME QUANTIY OF CONTRACTED CAPACITY
C94: Sorting | D94: Tranches | F94: Tranche 1 | G94: Tranche 2 | H94: Tranche 3 | I94: Tranche 4 | J94: Tranche 5 | K94: Tranche 6 | L94: Tranche 7 | M94: Tranche 8 | N94: Tranche 9 | O94: Tranche 10 | P94: Tranche 11 | Q94: Tranche 12 | R94: Total | T94: Total after tranche 2 | U94: Total after tranche 3 | V94: Total after tranche 4 | W94: Total after tranche 5 | X94: Total after tranche 6 | Y94: Total after tranche 7 | Z94: Total after tranche 8 | AA94: Total after tranche 9 | AB94: Total after tranche 10 | AC94: Total after tranche 11 | AD94: Total after tranche 12
F95: =D97 -> 1,000,000 | G95: =D98 -> 1,000,000 | H95: =D99 -> 1,000,000 | I95: =D100 -> 1,000,000 | J95: =D101 -> 1,000,000 | K95: =D102 -> 1,000,000 | L95: =D103 -> 0 | M95: =D104 -> 1,000,000 | N95: =D105 -> 0 | O95: =D106 -> 0 | P95: =D107 -> 0 | Q95: =D108 -> 0
B97: 1 | C97: =SMALL($C$11:$C$22,B97) -> 1,000,000 | D97: =C97 -> 1,000,000 | F97: =$F$95 -> 1,000,000 | G97: =IF($C11>=T97,G$95,0) -> 1,000,000 | H97: =IF($C11>=U97,H$95,0) -> 1,000,000 | I97: =IF($C11>=V97,I$95,0) -> 1,000,000 | J97: =IF($C11>=W97,J$95,0) -> 1,000,000 | K97: =IF($C11>=X97,K$95,0) -> 1,000,000 | L97: =IF($C11>=Y97,L$95,0) -> 0 | M97: =IF($C11>=Z97,M$95,0) -> 1,000,000 | N97: =IF($C11>=AA97,N$95,0) -> 0 | O97: =IF($C11>=AB97,O$95,0) -> 0 | P97: =IF($C11>=AC97,P$95,0) -> 0 | Q97: =IF($C11>=AD97,Q$95,0) -> 0 | R97: =SUM(F97:Q97) -> 7,000,000 | T97: =D97+D98 -> 2,000,000 | U97: =T97+D99 -> 3,000,000 | V97: =U97+D100 -> 4,000,000 | W97: =V97+D101 -> 5,000,000 | X97: =W97+D102 -> 6,000,000 | Y97: =X97+D103 -> 6,000,000 | Z97: =Y97+D104 -> 7,000,000 | AA97: =Z97+D105 -> 7,000,000 | AB97: =AA97+D106 -> 7,000,000 | AC97: =AB97+D107 -> 7,000,000 | AD97: =AC97+D108 -> 7,000,000
B98: 2 | C98: =SMALL($C$11:$C$22,B98) -> 2,000,000 | D98: =C98-C97 -> 1,000,000 | F98: =$F$95 -> 1,000,000 | G98: 1,000,000 | H98: 1,000,000 | I98: 1,000,000 | J98: 1,000,000 | K98: =IF($C12>=X98,K$95,0) -> 1,000,000 | L98: 0 | M98: 1,000,000 | N98: 0 | O98: 0 | P98: 0 | Q98: 0 | R98: =SUM(F98:Q98) -> 7,000,000 | T98: =T97 -> 2,000,000 | U98: =U97 -> 3,000,000 | V98: =V97 -> 4,000,000 | W98: 5,000,000 | X98: 6,000,000 | Y98: 6,000,000 | Z98: 7,000,000 | AA98: 7,000,000 | AB98: 7,000,000 | AC98: 7,000,000 | AD98: 7,000,000
B99: 3 | C99: =SMALL($C$11:$C$22,B99) -> 3,000,000 | D99: =C99-C98 -> 1,000,000 | F99: 1,000,000 | G99: 1,000,000 | H99: 1,000,000 | I99: 1,000,000 | J99: 1,000,000 | K99: 1,000,000 | L99: 0 | M99: 0 | N99: 0 | O99: 0 | P99: 0 | Q99: 0 | R99: 6,000,000 | T99: =T98 -> 2,000,000 | U99: 3,000,000 | V99: 4,000,000 | W99: 5,000,000 | X99: 6,000,000 | Y99: 6,000,000 | Z99: 7,000,000 | AA99: 7,000,000 | AB99: 7,000,000 | AC99: 7,000,000 | AD99: 7,000,000
B100: 4 | C100: 4,000,000 | D100: =C100-C99 -> 1,000,000 | F100: 1,000,000 | G100: 1,000,000 | H100: 1,000,000 | I100: 1,000,000 | J100: 1,000,000 | K100: 1,000,000 | L100: 0 | M100: 0 | N100: 0 | O100: 0 | P100: 0 | Q100: 0 | R100: 6,000,000 | T100: 2,000,000 | U100: 3,000,000 | V100: 4,000,000 | W100: 5,000,000 | X100: 6,000,000 | Y100: 6,000,000 | Z100: 7,000,000 | AA100: 7,000,000 | AB100: 7,000,000 | AC100: 7,000,000 | AD100: 7,000,000
B101: 5 | C101: 5,000,000 | D101: =C101-C100 -> 1,000,000 | F101: 1,000,000 | G101: 1,000,000 | H101: 1,000,000 | I101: 1,000,000 | J101: 1,000,000 | K101: 0 | L101: 0 | M101: 0 | N101: 0 | O101: 0 | P101: 0 | Q101: 0 | R101: 5,000,000 | T101: 2,000,000 | U101: 3,000,000 | V101: 4,000,000 | W101: 5,000,000 | X101: 6,000,000 | Y101: 6,000,000 | Z101: 7,000,000 | AA101: 7,000,000 | AB101: 7,000,000 | AC101: 7,000,000 | AD101: 7,000,000
B102: 6 | C102: 6,000,000 | D102: =C102-C101 -> 1,000,000 | F102: 1,000,000 | G102: 0 | H102: 0 | I102: 0 | J102: 0 | K102: 0 | L102: 0 | M102: 0 | N102: 0 | O102: 0 | P102: 0 | Q102: 0 | R102: 1,000,000 | T102: 2,000,000 | U102: 3,000,000 | V102: 4,000,000 | W102: 5,000,000 | X102: 6,000,000 | Y102: 6,000,000 | Z102: 7,000,000 | AA102: 7,000,000 | AB102: 7,000,000 | AC102: 7,000,000 | AD102: 7,000,000
B103: 7 | C103: 6,000,000 | D103: =C103-C102 -> 0 | F103: 1,000,000 | G103: 1,000,000 | H103: =IF($C17>=U103,H$95,0) -> 0 | I103: 0 | J103: 0 | K103: 0 | L103: 0 | M103: 0 | N103: 0 | O103: 0 | P103: 0 | Q103: 0 | R103: 2,000,000 | T103: 2,000,000 | U103: 3,000,000 | V103: 4,000,000 | W103: 5,000,000 | X103: 6,000,000 | Y103: 6,000,000 | Z103: 7,000,000 | AA103: 7,000,000 | AB103: 7,000,000 | AC103: 7,000,000 | AD103: 7,000,000
B104: 8 | C104: 7,000,000 | D104: 1,000,000 | F104: 1,000,000 | G104: 1,000,000 | H104: 1,000,000 | I104: 0 | J104: 0 | K104: 0 | L104: 0 | M104: 0 | N104: 0 | O104: 0 | P104: 0 | Q104: 0 | R104: 3,000,000 | T104: 2,000,000 | U104: 3,000,000 | V104: 4,000,000 | W104: 5,000,000 | X104: 6,000,000 | Y104: 6,000,000 | Z104: 7,000,000 | AA104: 7,000,000 | AB104: 7,000,000 | AC104: 7,000,000 | AD104: 7,000,000
B105: 9 | C105: 7,000,000 | D105: 0 | F105: 1,000,000 | G105: 1,000,000 | H105: 1,000,000 | I105: 1,000,000 | J105: 0 | K105: 0 | L105: 0 | M105: 0 | N105: 0 | O105: 0 | P105: 0 | Q105: 0 | R105: 4,000,000 | T105: 2,000,000 | U105: 3,000,000 | V105: 4,000,000 | W105: 5,000,000 | X105: 6,000,000 | Y105: 6,000,000 | Z105: 7,000,000 | AA105: 7,000,000 | AB105: 7,000,000 | AC105: 7,000,000 | AD105: 7,000,000
B106: 10 | C106: 7,000,000 | D106: 0 | F106: 1,000,000 | G106: 1,000,000 | H106: 1,000,000 | I106: 1,000,000 | J106: 1,000,000 | K106: 1,000,000 | L106: 0 | M106: 1,000,000 | N106: 0 | O106: 0 | P106: 0 | Q106: 0 | R106: 7,000,000 | T106: 2,000,000 | U106: 3,000,000 | V106: 4,000,000 | W106: 5,000,000 | X106: 6,000,000 | Y106: 6,000,000 | Z106: 7,000,000 | AA106: 7,000,000 | AB106: 7,000,000 | AC106: 7,000,000 | AD106: 7,000,000
B107: 11 | C107: 7,000,000 | D107: 0 | F107: 1,000,000 | G107: =IF($C21>=T107,G$95,0) -> 1,000,000 | H107: 1,000,000 | I107: 1,000,000 | J107: 1,000,000 | K107: 1,000,000 | L107: 0 | M107: 1,000,000 | N107: 0 | O107: 0 | P107: 0 | Q107: 0 | R107: 7,000,000 | T107: 2,000,000 | U107: 3,000,000 | V107: 4,000,000 | W107: 5,000,000 | X107: 6,000,000 | Y107: 6,000,000 | Z107: 7,000,000 | AA107: 7,000,000 | AB107: 7,000,000 | AC107: 7,000,000 | AD107: 7,000,000
B108: 12 | C108: 7,000,000 | D108: 0 | F108: 1,000,000 | G108: 1,000,000 | H108: 1,000,000 | I108: 1,000,000 | J108: 1,000,000 | K108: 1,000,000 | L108: 0 | M108: 1,000,000 | N108: 0 | O108: 0 | P108: 0 | Q108: 0 | R108: 7,000,000 | T108: 2,000,000 | U108: 3,000,000 | V108: 4,000,000 | W108: 5,000,000 | X108: 6,000,000 | Y108: 6,000,000 | Z108: 7,000,000 | AA108: 7,000,000 | AB108: 7,000,000 | AC108: 7,000,000 | AD108: 7,000,000
B110: FOR EACH TRANCHE: DETERMINE THE CAPACITY PRODUCTS WITHOUT optimisation
F112: Tranche 1 | G112: Tranche 2 | H112: Tranche 3 | I112: Tranche 4 | J112: Tranche 5 | K112: Tranche 6 | L112: Tranche 7 | M112: Tranche 8 | N112: Tranche 9 | O112: Tranche 10 | P112: Tranche 11 | Q112: Tranche 12
E113: January | F113: Y | G113: =IF(G97=0,"",IF(AND(G$97=G$98,G$98=G$99,$L$89<>$N$80,$L$89<>$N$81),"Q","M")) -> Q | H113: =IF(H97=0,"",IF(AND(H$97=H$98,H$98=H$99,$L$89<>$N$80,$L$89<>$N$81),"Q","M")) -> Q | I113: =IF(I97=0,"",IF(AND(I$97=I$98,I$98=I$99,$L$89<>$N$80,$L$89<>$N$81),"Q","M")) -> Q | J113: Q | K113: Q | L113: =IF(L97=0,"",IF(AND(L$97=L$98,L$98=L$99,$L$89<>$N$80,$L$89<>$N$81),"Q","M")) ->  | M113: M
E114: February | F114: Y | G114: Q | H114: Q | I114: =IF(I98=0,"",IF(AND(I$97=I$98,I$98=I$99,$L$89<>$N$80,$L$89<>$N$81),"Q","M")) -> Q | J114: Q | K114: Q | M114: M
E115: March | F115: Y | G115: Q | H115: Q | I115: =IF(I99=0,"",IF(AND(I$97=I$98,I$98=I$99,$L$89<>$N$80,$L$89<>$N$81),"Q","M")) -> Q | J115: Q | K115: Q | O115: =IF(O99=0,"",IF(AND(O$97=O$98,O$98=O$99,$L$89<>$N$80,$L$89<>$N$81),"Q","M")) -> 
E116: April | F116: Y | G116: =IF(G100=0,"",IF(AND(G$100=G$101,G$101=G$102,$L$89<>$N$83,$L$89<>$N$84),"Q","M")) -> M | H116: M | I116: =IF(I100=0,"",IF(AND(I$100=I$101,I$101=I$102,$L$89<>$N$83,$L$89<>$N$84),"Q","M")) -> M | J116: M | K116: M
E117: May | F117: Y | G117: M | H117: M | I117: =IF(I101=0,"",IF(AND(I$100=I$101,I$101=I$102,$L$89<>$N$83,$L$89<>$N$84),"Q","M")) -> M | J117: M | L117: =IF(L101=0,"",IF(AND(L$100=L$101,L$101=L$102,$L$89<>$N$83,$L$89<>$N$84),"Q","M")) -> 
E118: June | F118: Y | I118: =IF(I102=0,"",IF(AND(I$100=I$101,I$101=I$102,$L$89<>$N$83,$L$89<>$N$84),"Q","M")) -> 
E119: July | F119: Y | G119: =IF(G103=0,"",IF(AND(G$103=G$104,G$104=G$105,$L$89<>$N$86,$L$89<>$N$87),"Q","M")) -> Q | H119: =IF(H103=0,"",IF(AND(H$103=H$104,H$104=H$105,$L$89<>$N$86,$L$89<>$N$87),"Q","M")) ->  | I119: =IF(I103=0,"",IF(AND(I$103=I$104,I$104=I$105,$L$89<>$N$86,$L$89<>$N$87),"Q","M")) -> 
E120: August | F120: Y | G120: =IF(G104=0,"",IF(AND(G$103=G$104,G$104=G$105,$L$89<>$N$86,$L$89<>$N$87),"Q","M")) -> Q | H120: M | I120: =IF(I104=0,"",IF(AND(I$103=I$104,I$104=I$105,$L$89<>$N$86,$L$89<>$N$87),"Q","M")) -> 
E121: September | F121: Y | G121: =IF(G105=0,"",IF(AND(G$103=G$104,G$104=G$105,$L$89<>$N$86,$L$89<>$N$87),"Q","M")) -> Q | H121: M | I121: =IF(I105=0,"",IF(AND(I$103=I$104,I$104=I$105,$L$89<>$N$86,$L$89<>$N$87),"Q","M")) -> M
E122: October | F122: Y | G122: =IF(G106=0,"",IF(AND(G$106=G$107,G$107=G$108,$L$89<>$N$89,$L$89<>$N$90),"Q","M")) -> Q | H122: =IF(H106=0,"",IF(AND(H$106=H$107,H$107=H$108,$L$89<>$N$89,$L$89<>$N$90),"Q","M")) -> Q | I122: =IF(I106=0,"",IF(AND(I$106=I$107,I$107=I$108,$L$89<>$N$89,$L$89<>$N$90),"Q","M")) -> Q | J122: Q | K122: Q | M122: Q
E123: November | F123: Y | G123: =IF(G107=0,"",IF(AND(G$106=G$107,G$107=G$108,$L$89<>$N$89,$L$89<>$N$90),"Q","M")) -> Q | H123: =IF(H107=0,"",IF(AND(H$106=H$107,H$107=H$108,$L$89<>$N$89,$L$89<>$N$90),"Q","M")) -> Q | I123: =IF(I107=0,"",IF(AND(I$106=I$107,I$107=I$108,$L$89<>$N$89,$L$89<>$N$90),"Q","M")) -> Q | J123: Q | K123: Q | L123: =IF(L107=0,"",IF(AND(L$106=L$107,L$107=L$108,$L$89<>$N$89,$L$89<>$N$90),"Q","M")) ->  | M123: Q
E124: December | F124: Y | G124: Q | H124: Q | I124: =IF(I108=0,"",IF(AND(I$106=I$107,I$107=I$108,$L$89<>$N$89,$L$89<>$N$90),"Q","M")) -> Q | J124: Q | K124: Q | M124: Q
B126: FOR EACH MONTH: DETERMINE AMOUNT OF CAPACITY WITHOUT optimisation
F128: Year | G128: Quarter | H128: Month | I128: Total
F129: Y | G129: Q | H129: M
E130: January | F130: =SUMIF($F113:$Q113,$F$129,$F97:$Q97) -> 1,000,000 | G130: =SUMIF($F113:$Q113,$G$129,$F97:$Q97) -> 5,000,000 | H130: =SUMIF($F113:$Q113,$H$129,$F97:$Q97) -> 1,000,000 | I130: =SUM(F130:H130) -> 7,000,000
E131: February | F131: =SUMIF($F114:$Q114,$F$129,$F98:$Q98) -> 1,000,000 | G131: =SUMIF($F114:$Q114,$G$129,$F98:$Q98) -> 5,000,000 | H131: =SUMIF($F114:$Q114,$H$129,$F98:$Q98) -> 1,000,000 | I131: 7,000,000
E132: March | F132: 1,000,000 | G132: 5,000,000 | H132: =SUMIF($F115:$Q115,$H$129,$F99:$Q99) -> 0 | I132: 6,000,000
E133: April | F133: 1,000,000 | G133: 0 | H133: 5,000,000 | I133: 6,000,000
E134: May | F134: 1,000,000 | G134: 0 | H134: 4,000,000 | I134: 5,000,000
E135: June | F135: 1,000,000 | G135: 0 | H135: 0 | I135: 1,000,000
E136: July | F136: 1,000,000 | G136: 1,000,000 | H136: 0 | I136: 2,000,000
E137: August | F137: 1,000,000 | G137: 1,000,000 | H137: 1,000,000 | I137: 3,000,000
E138: September | F138: 1,000,000 | G138: 1,000,000 | H138: 2,000,000 | I138: 4,000,000
E139: October | F139: 1,000,000 | G139: 6,000,000 | H139: 0 | I139: 7,000,000
E140: November | F140: 1,000,000 | G140: 6,000,000 | H140: 0 | I140: 7,000,000
E141: December | F141: 1,000,000 | G141: 6,000,000 | H141: 0 | I141: 7,000,000
J142: =SUM(J130:J141) -> 0
B144: optimisation - FOR EACH TRANCHE: DETERMINE THE CALCULATION FACTORS AND ITS SUM, IF SUM>1 THEN MAXIMISE TO 1 AND DETERMINE NUMBERS OF MONTHS INVOLVED
F146: Tranche 1 | G146: Tranche 2 | H146: Tranche 3 | I146: Tranche 4 | J146: Tranche 5 | K146: Tranche 6 | L146: Tranche 7 | M146: Tranche 8 | N146: Tranche 9 | O146: Tranche 10 | P146: Tranche 11 | Q146: Tranche 12
E147: January | F147: =IF(F97=0,0,1/12) -> 0.0833 | G147: =IF(G97=0,0,IF(AND(G$97=G$98,G$98=G$99,$L$89<>$N$80,$L$89<>$N$81),$Q79,$O79)) -> 0.1609 | H147: =IF(H97=0,0,IF(AND(H$97=H$98,H$98=H$99,$L$89<>$N$80,$L$89<>$N$81),$Q79,$O79)) -> 0.1609 | I147: 0.1609 | J147: 0.1609 | K147: 0.1609 | L147: 0.0000 | M147: 0.2268 | N147: 0.0000 | O147: 0.0000 | P147: 0.0000 | Q147: 0.0000
E148: February | F148: 0.0833 | G148: =IF(G98=0,0,IF(AND(G$97=G$98,G$98=G$99,$L$89<>$N$80,$L$89<>$N$81),$Q80,$O80)) -> 0.1609 | H148: =IF(H98=0,0,IF(AND(H$97=H$98,H$98=H$99,$L$89<>$N$80,$L$89<>$N$81),$Q80,$O80)) -> 0.1609 | I148: 0.1609 | J148: 0.1609 | K148: 0.1609 | L148: 0.0000 | M148: 0.1981 | N148: 0.0000 | O148: 0.0000 | P148: 0.0000 | Q148: 0.0000
E149: March | F149: 0.0833 | G149: =IF(G99=0,0,IF(AND(G$97=G$98,G$98=G$99,$L$89<>$N$80,$L$89<>$N$81),$Q81,$O81)) -> 0.1609 | H149: 0.1609 | I149: 0.1609 | J149: 0.1609 | K149: 0.1609 | L149: 0.0000 | M149: 0.0000 | N149: 0.0000 | O149: 0.0000 | P149: 0.0000 | Q149: 0.0000
E150: April | F150: 0.0833 | G150: =IF(G100=0,0,IF(AND(G$100=G$101,G$101=G$102,$L$89<>$N$83,$L$89<>$N$84),$Q82,$O82)) -> 0.1056 | H150: 0.1056 | I150: 0.1056 | J150: 0.1056 | K150: 0.1056 | L150: 0.0000 | M150: 0.0000 | N150: 0.0000 | O150: 0.0000 | P150: 0.0000 | Q150: 0.0000
E151: May | F151: 0.0833 | G151: =IF(G101=0,0,IF(AND(G$100=G$101,G$101=G$102,$L$89<>$N$83,$L$89<>$N$84),$Q83,$O83)) -> 0.0859 | H151: 0.0859 | I151: 0.0859 | J151: 0.0859 | K151: 0.0000 | L151: 0.0000 | M151: 0.0000 | N151: 0.0000 | O151: 0.0000 | P151: 0.0000 | Q151: 0.0000
E152: June | F152: 0.0833 | G152: =IF(G102=0,0,IF(AND(G$100=G$101,G$101=G$102,$L$89<>$N$83,$L$89<>$N$84),$Q84,$O84)) -> 0.0000 | H152: 0.0000 | I152: 0.0000 | J152: 0.0000 | K152: 0.0000 | L152: 0.0000 | M152: 0.0000 | N152: 0.0000 | O152: 0.0000 | P152: 0.0000 | Q152: 0.0000
E153: July | F153: 0.0833 | G153: =IF(G103=0,0,IF(AND(G$103=G$104,G$104=G$105,$L$89<>$N$86,$L$89<>$N$87),$Q85,$O85)) -> 0.0578 | H153: 0.0000 | I153: 0.0000 | J153: 0.0000 | K153: 0.0000 | L153: 0.0000 | M153: 0.0000 | N153: 0.0000 | O153: 0.0000 | P153: 0.0000 | Q153: 0.0000
E154: August | F154: 0.0833 | G154: =IF(G104=0,0,IF(AND(G$103=G$104,G$104=G$105,$L$89<>$N$86,$L$89<>$N$87),$Q86,$O86)) -> 0.0578 | H154: 0.0671 | I154: 0.0000 | J154: 0.0000 | K154: 0.0000 | L154: 0.0000 | M154: 0.0000 | N154: 0.0000 | O154: 0.0000 | P154: 0.0000 | Q154: 0.0000
E155: September | F155: 0.0833 | G155: =IF(G105=0,0,IF(AND(G$103=G$104,G$104=G$105,$L$89<>$N$86,$L$89<>$N$87),$Q87,$O87)) -> 0.0578 | H155: 0.0706 | I155: 0.0706 | J155: 0.0000 | K155: 0.0000 | L155: 0.0000 | M155: 0.0000 | N155: 0.0000 | O155: 0.0000 | P155: 0.0000 | Q155: 0.0000
E156: October | F156: 0.0833 | G156: =IF(G106=0,0,IF(AND(G$106=G$107,G$107=G$108,$L$89<>$N$89,$L$89<>$N$90),$Q88,$O88)) -> 0.1239 | H156: 0.1239 | I156: 0.1239 | J156: 0.1239 | K156: 0.1239 | L156: 0.0000 | M156: 0.1239 | N156: 0.0000 | O156: 0.0000 | P156: 0.0000 | Q156: 0.0000
E157: November | F157: 0.0833 | G157: =IF(G107=0,0,IF(AND(G$106=G$107,G$107=G$108,$L$89<>$N$89,$L$89<>$N$90),$Q89,$O89)) -> 0.1239 | H157: 0.1239 | I157: 0.1239 | J157: 0.1239 | K157: 0.1239 | L157: 0.0000 | M157: 0.1239 | N157: 0.0000 | O157: 0.0000 | P157: 0.0000 | Q157: 0.0000
E158: December | F158: 0.0833 | G158: =IF(G108=0,0,IF(AND(G$106=G$107,G$107=G$108,$L$89<>$N$89,$L$89<>$N$90),$Q90,$O90)) -> 0.1239 | H158: 0.1239 | I158: 0.1239 | J158: 0.1239 | K158: 0.1239 | L158: 0.0000 | M158: 0.1239 | N158: 0.0000 | O158: 0.0000 | P158: 0.0000 | Q158: 0.0000
C160: Sum calculation factors | F160: =SUM(F147:F158) -> 1.00000 | G160: =SUM(G147:G158) -> 1.21931 | H160: =SUM(H147:H158) -> 1.18352 | I160: 1.11644 | J160: 1.04587 | K160: 0.95998 | L160: 0 | M160: 0.79662 | N160: 0 | O160: 0 | P160: 0 | Q160: 0
C161: Maximise at 1 (art. 3.2.2.8) | F161: =MIN(F160,1) -> 1.00000 | G161: =MIN(G160,1) -> 1.00000 | H161: 1.00000 | I161: 1.00000 | J161: 1.00000 | K161: 0.95998 | L161: 0 | M161: 0.79662 | N161: 0 | O161: 0 | P161: 0 | Q161: 0
C162: Upgrade tranche to yearly product? | F162: =IF(F161=1,"Y","") -> Y | G162: =IF(G161=1,"Y","") -> Y | H162: Y | I162: Y | J162: Y
C163: Numbers of months involved (art. 3.2.3.8) | F163: =ROUND(IF(F161=1,COUNTIF(F147:F158,">0"),0),0) -> 12 | G163: =ROUND(IF(G161=1,COUNTIF(G147:G158,">0"),0),0) -> 11 | H163: =ROUND(IF(H161=1,COUNTIF(H147:H158,">0"),0),0) -> 10 | I163: =ROUND(IF(I161=1,COUNTIF(I147:I158,">0"),0),0) -> 9 | J163: =ROUND(IF(J161=1,COUNTIF(J147:J158,">0"),0),0) -> 8 | K163: 0 | L163: 0 | M163: 0 | N163: 0 | O163: 0 | P163: 0 | Q163: 0
B165: optimisation - FOR EACH TRANCHE: DETERMINE THE NEW CALCULATION FACTORS
F167: Tranche 1 | G167: Tranche 2 | H167: Tranche 3 | I167: Tranche 4 | J167: Tranche 5 | K167: Tranche 6 | L167: Tranche 7 | M167: Tranche 8 | N167: Tranche 9 | O167: Tranche 10 | P167: Tranche 11 | Q167: Tranche 12
E168: January | F168: =IF(F$162="Y",1/12,IF(F147=0,"",F147)) -> 0.0833 | G168: =IF(G$162="Y",1/12,IF(G147=0,0,G147)) -> 0.0833 | H168: 0.0833 | I168: 0.0833 | J168: 0.0833 | K168: 0.1609 | L168: 0.0000 | M168: 0.2268 | N168: 0.0000 | O168: 0.0000 | P168: 0.0000 | Q168: 0.0000
E169: February | F169: =IF(F$162="Y",1/12,IF(F148=0,0,F148)) -> 0.0833 | G169: 0.0833 | H169: =IF(H$162="Y",1/12,IF(H148=0,0,H148)) -> 0.0833 | I169: 0.0833 | J169: 0.0833 | K169: 0.1609 | L169: 0.0000 | M169: 0.1981 | N169: 0.0000 | O169: 0.0000 | P169: 0.0000 | Q169: 0.0000
E170: March | F170: 0.0833 | G170: 0.0833 | H170: 0.0833 | I170: 0.0833 | J170: 0.0833 | K170: 0.1609 | L170: 0.0000 | M170: 0.0000 | N170: 0.0000 | O170: 0.0000 | P170: 0.0000 | Q170: 0.0000
E171: April | F171: 0.0833 | G171: 0.0833 | H171: 0.0833 | I171: 0.0833 | J171: 0.0833 | K171: 0.1056 | L171: 0.0000 | M171: 0.0000 | N171: 0.0000 | O171: 0.0000 | P171: 0.0000 | Q171: 0.0000
E172: May | F172: 0.0833 | G172: 0.0833 | H172: 0.0833 | I172: 0.0833 | J172: 0.0833 | K172: 0.0000 | L172: 0.0000 | M172: 0.0000 | N172: 0.0000 | O172: 0.0000 | P172: 0.0000 | Q172: 0.0000
E173: June | F173: 0.0833 | G173: 0.0833 | H173: 0.0833 | I173: 0.0833 | J173: 0.0833 | K173: 0.0000 | L173: 0.0000 | M173: 0.0000 | N173: 0.0000 | O173: 0.0000 | P173: 0.0000 | Q173: 0.0000
E174: July | F174: 0.0833 | G174: 0.0833 | H174: 0.0833 | I174: 0.0833 | J174: 0.0833 | K174: 0.0000 | L174: 0.0000 | M174: 0.0000 | N174: 0.0000 | O174: 0.0000 | P174: 0.0000 | Q174: 0.0000
E175: August | F175: 0.0833 | G175: 0.0833 | H175: 0.0833 | I175: 0.0833 | J175: 0.0833 | K175: 0.0000 | L175: 0.0000 | M175: 0.0000 | N175: 0.0000 | O175: 0.0000 | P175: 0.0000 | Q175: 0.0000
E176: September | F176: 0.0833 | G176: 0.0833 | H176: 0.0833 | I176: 0.0833 | J176: 0.0833 | K176: 0.0000 | L176: 0.0000 | M176: 0.0000 | N176: 0.0000 | O176: 0.0000 | P176: 0.0000 | Q176: 0.0000
E177: October | F177: 0.0833 | G177: 0.0833 | H177: 0.0833 | I177: 0.0833 | J177: 0.0833 | K177: 0.1239 | L177: 0.0000 | M177: 0.1239 | N177: 0.0000 | O177: 0.0000 | P177: 0.0000 | Q177: 0.0000
E178: November | F178: 0.0833 | G178: 0.0833 | H178: 0.0833 | I178: 0.0833 | J178: 0.0833 | K178: 0.1239 | L178: 0.0000 | M178: 0.1239 | N178: 0.0000 | O178: 0.0000 | P178: 0.0000 | Q178: 0.0000
E179: December | F179: 0.0833 | G179: 0.0833 | H179: 0.0833 | I179: 0.0833 | J179: 0.0833 | K179: 0.1239 | L179: 0.0000 | M179: 0.1239 | N179: 0.0000 | O179: 0.0000 | P179: 0.0000 | Q179: 0.0000
B181: optimisation - FOR EACH TRANCHE: DETERMINE THE CAPACITY PRODUCT Y, Q or M
F183: Tranche 1 | G183: Tranche 2 | H183: Tranche 3 | I183: Tranche 4 | J183: Tranche 5 | K183: Tranche 6 | L183: Tranche 7 | M183: Tranche 8 | N183: Tranche 9 | O183: Tranche 10 | P183: Tranche 11 | Q183: Tranche 12
E184: January | F184: =IF(F168=0,"",IF(F$162="Y","Y",IF(AND(F$168=F$169,F$169=F$170),"Q","M"))) -> Y | G184: Y | H184: Y | I184: Y | J184: Y | K184: Q | M184: M
E185: February | F185: =IF(F169=0,"",IF(F$162="Y","Y",IF(AND(F$168=F$169,F$169=F$170),"Q","M"))) -> Y | G185: Y | H185: Y | I185: Y | J185: Y | K185: Q | M185: M
E186: March | F186: =IF(F170=0,"",IF(F$162="Y","Y",IF(AND(F$168=F$169,F$169=F$170),"Q","M"))) -> Y | G186: Y | H186: Y | I186: Y | J186: Y | K186: Q
E187: April | F187: =IF(F171=0,"",IF(F$162="Y","Y",IF(AND(F$171=F$172,F$172=F$173),"Q","M"))) -> Y | G187: =IF(G171=0,"",IF(G$162="Y","Y",IF(AND(G$171=G$172,G$172=G$173),"Q","M"))) -> Y | H187: Y | I187: =IF(I171=0,"",IF(I$162="Y","Y",IF(AND(I$171=I$172,I$172=I$173),"Q","M"))) -> Y | J187: Y | K187: M
E188: May | F188: =IF(F172=0,"",IF(F$162="Y","Y",IF(AND(F$171=F$172,F$172=F$173),"Q","M"))) -> Y | G188: Y | H188: Y | I188: Y | J188: Y
E189: June | F189: =IF(F173=0,"",IF(F$162="Y","Y",IF(AND(F$171=F$172,F$172=F$173),"Q","M"))) -> Y | G189: Y | H189: Y | I189: Y | J189: Y
E190: July | F190: =IF(F174=0,"",IF(F$162="Y","Y",IF(AND(F$174=F$175,F$175=F$176),"Q","M"))) -> Y | G190: Y | H190: Y | I190: Y | J190: Y
E191: August | F191: =IF(F175=0,"",IF(F$162="Y","Y",IF(AND(F$174=F$175,F$175=F$176),"Q","M"))) -> Y | G191: Y | H191: Y | I191: Y | J191: Y
E192: September | F192: =IF(F176=0,"",IF(F$162="Y","Y",IF(AND(F$174=F$175,F$175=F$176),"Q","M"))) -> Y | G192: Y | H192: Y | I192: Y | J192: Y | L192: =IF(L176=0,"",IF(L$162="Y","Y",IF(AND(L$174=L$175,L$175=L$176),"Q","M"))) -> 
E193: October | F193: =IF(F177=0,"",IF(F$162="Y","Y",IF(AND(F$177=F$178,F$178=F$179),"Q","M"))) -> Y | G193: Y | H193: Y | I193: Y | J193: Y | K193: Q | L193: =IF(L177=0,"",IF(L$162="Y","Y",IF(AND(L$177=L$178,L$178=L$179),"Q","M"))) ->  | M193: Q
E194: November | F194: =IF(F178=0,"",IF(F$162="Y","Y",IF(AND(F$177=F$178,F$178=F$179),"Q","M"))) -> Y | G194: Y | H194: Y | I194: Y | J194: Y | K194: Q | L194: =IF(L178=0,"",IF(L$162="Y","Y",IF(AND(L$177=L$178,L$178=L$179),"Q","M"))) ->  | M194: Q
E195: December | F195: =IF(F179=0,"",IF(F$162="Y","Y",IF(AND(F$177=F$178,F$178=F$179),"Q","M"))) -> Y | G195: Y | H195: Y | I195: Y | J195: Y | K195: Q | L195: =IF(L179=0,"",IF(L$162="Y","Y",IF(AND(L$177=L$178,L$178=L$179),"Q","M"))) ->  | M195: Q
B197: optimisation - FOR EACH TRANCHE: DETERMINE AMOUNT OF CAPACITY
F198: Tranche 1 | G198: Tranche 2 | H198: Tranche 3 | I198: Tranche 4 | J198: Tranche 5 | K198: Tranche 6 | L198: Tranche 7 | M198: Tranche 8 | N198: Tranche 9 | O198: Tranche 10 | P198: Tranche 11 | Q198: Tranche 12 | R198: Total
E199: January | F199: =IF(OR(F184="Y",F184="Q",F184="M"),F$95,0) -> 1,000,000 | G199: 1,000,000 | H199: 1,000,000 | I199: 1,000,000 | J199: 1,000,000 | K199: 1,000,000 | L199: 0 | M199: 1,000,000 | N199: 0 | O199: 0 | P199: 0 | Q199: 0 | R199: =SUM(F199:Q199) -> 7,000,000
E200: February | F200: =IF(OR(F185="Y",F185="Q",F185="M"),F$95,0) -> 1,000,000 | G200: 1,000,000 | H200: =IF(OR(H185="Y",H185="Q",H185="M"),H$95,0) -> 1,000,000 | I200: 1,000,000 | J200: 1,000,000 | K200: 1,000,000 | L200: 0 | M200: 1,000,000 | N200: 0 | O200: 0 | P200: 0 | Q200: 0 | R200: =SUM(F200:Q200) -> 7,000,000
E201: March | F201: 1,000,000 | G201: 1,000,000 | H201: =IF(OR(H186="Y",H186="Q",H186="M"),H$95,0) -> 1,000,000 | I201: 1,000,000 | J201: 1,000,000 | K201: 1,000,000 | L201: 0 | M201: 0 | N201: 0 | O201: 0 | P201: 0 | Q201: 0 | R201: 6,000,000
E202: April | F202: 1,000,000 | G202: 1,000,000 | H202: =IF(OR(H187="Y",H187="Q",H187="M"),H$95,0) -> 1,000,000 | I202: 1,000,000 | J202: 1,000,000 | K202: 1,000,000 | L202: 0 | M202: 0 | N202: 0 | O202: 0 | P202: 0 | Q202: 0 | R202: 6,000,000
E203: May | F203: 1,000,000 | G203: 1,000,000 | H203: =IF(OR(H188="Y",H188="Q",H188="M"),H$95,0) -> 1,000,000 | I203: 1,000,000 | J203: 1,000,000 | K203: 0 | L203: 0 | M203: 0 | N203: 0 | O203: 0 | P203: 0 | Q203: 0 | R203: 5,000,000
E204: June | F204: 1,000,000 | G204: 1,000,000 | H204: =IF(OR(H189="Y",H189="Q",H189="M"),H$95,0) -> 1,000,000 | I204: 1,000,000 | J204: 1,000,000 | K204: 0 | L204: 0 | M204: 0 | N204: 0 | O204: 0 | P204: 0 | Q204: 0 | R204: 5,000,000
E205: July | F205: 1,000,000 | G205: 1,000,000 | H205: =IF(OR(H190="Y",H190="Q",H190="M"),H$95,0) -> 1,000,000 | I205: 1,000,000 | J205: 1,000,000 | K205: 0 | L205: 0 | M205: 0 | N205: 0 | O205: 0 | P205: 0 | Q205: 0 | R205: 5,000,000
E206: August | F206: 1,000,000 | G206: 1,000,000 | H206: =IF(OR(H191="Y",H191="Q",H191="M"),H$95,0) -> 1,000,000 | I206: 1,000,000 | J206: 1,000,000 | K206: 0 | L206: 0 | M206: 0 | N206: 0 | O206: 0 | P206: 0 | Q206: 0 | R206: 5,000,000
E207: September | F207: 1,000,000 | G207: 1,000,000 | H207: =IF(OR(H192="Y",H192="Q",H192="M"),H$95,0) -> 1,000,000 | I207: 1,000,000 | J207: 1,000,000 | K207: 0 | L207: 0 | M207: 0 | N207: 0 | O207: 0 | P207: 0 | Q207: 0 | R207: 5,000,000
E208: October | F208: 1,000,000 | G208: 1,000,000 | H208: =IF(OR(H193="Y",H193="Q",H193="M"),H$95,0) -> 1,000,000 | I208: 1,000,000 | J208: 1,000,000 | K208: 1,000,000 | L208: 0 | M208: 1,000,000 | N208: 0 | O208: 0 | P208: 0 | Q208: 0 | R208: 7,000,000
E209: November | F209: 1,000,000 | G209: 1,000,000 | H209: =IF(OR(H194="Y",H194="Q",H194="M"),H$95,0) -> 1,000,000 | I209: 1,000,000 | J209: 1,000,000 | K209: 1,000,000 | L209: 0 | M209: 1,000,000 | N209: 0 | O209: 0 | P209: 0 | Q209: 0 | R209: 7,000,000
E210: December | F210: 1,000,000 | G210: 1,000,000 | H210: =IF(OR(H195="Y",H195="Q",H195="M"),H$95,0) -> 1,000,000 | I210: 1,000,000 | J210: 1,000,000 | K210: 1,000,000 | L210: 0 | M210: 1,000,000 | N210: 0 | O210: 0 | P210: 0 | Q210: 0 | R210: 7,000,000
B212: optimisation - FOR EACH MONTH: DETERMINE AMOUNT OF CAPACITY
F214: Year | G214: Quarter | H214: Month | I214: Total
F215: y | G215: Q | H215: M
E216: January | F216: =SUMIF($F184:$Q184,F$215,$F199:$Q199) -> 5,000,000 | G216: =SUMIF($F184:$Q184,G$215,$F199:$Q199) -> 1,000,000 | H216: =SUMIF($F184:$Q184,H$215,$F199:$Q199) -> 1,000,000 | I216: =SUM(F216:H216) -> 7,000,000
E217: February | F217: =SUMIF($F185:$Q185,F$215,$F200:$Q200) -> 5,000,000 | G217: =SUMIF($F185:$Q185,G$215,$F200:$Q200) -> 1,000,000 | H217: =SUMIF($F185:$Q185,H$215,$F200:$Q200) -> 1,000,000 | I217: 7,000,000
E218: March | F218: 5,000,000 | G218: 1,000,000 | H218: =SUMIF($F186:$Q186,H$215,$F201:$Q201) -> 0 | I218: 6,000,000
E219: April | F219: 5,000,000 | G219: 0 | H219: 1,000,000 | I219: 6,000,000
E220: May | F220: 5,000,000 | G220: 0 | H220: 0 | I220: 5,000,000
E221: June | F221: 5,000,000 | G221: 0 | H221: 0 | I221: 5,000,000
E222: July | F222: 5,000,000 | G222: 0 | H222: 0 | I222: 5,000,000
E223: August | F223: 5,000,000 | G223: 0 | H223: 0 | I223: 5,000,000
E224: September | F224: 5,000,000 | G224: 0 | H224: 0 | I224: 5,000,000
E225: October | F225: 5,000,000 | G225: 2,000,000 | H225: 0 | I225: 7,000,000
E226: November | F226: 5,000,000 | G226: 2,000,000 | H226: 0 | I226: 7,000,000
E227: December | F227: 5,000,000 | G227: 2,000,000 | H227: 0 | I227: 7,000,000
